{"text_format":"1","workbook":"xlsx","n_sheets":3,"sheets":["Sectiunile A-C","Buget indicativ si Anexe","Sectiunile D-F"],"not_rendered":{"charts":0,"images":91,"macros":1,"external_links":0,"defined_names":0,"comments":0,"pivot_tables":0},"unopened":[],"bounds":{"document_bytes":16777216,"sheet_cells":100000,"rows_first":2000,"rows_last":500,"rows_between":2000,"halvings":0,"cell_chars":16384,"cell_head_chars":4096},"cells_cut":0,"cells_raw":0,"read":"whole","date_system":"1900"}

{"sheet":"Sectiunile A-C","index":0,"n_rows":309,"n_cols":9,"rows_kept":309,"cut":false,"hidden":false,"merged":[[231,0,231,1],[231,2,232,8],[233,0,233,2],[233,5,233,8],[234,0,234,2],[234,5,234,8],[176,0,176,2],[176,5,176,8],[202,0,202,1],[202,2,203,8],[204,0,204,2],[204,5,204,8],[205,0,205,2],[205,5,205,8],[215,6,216,7],[219,2,219,3],[220,0,220,1],[220,3,220,4],[220,6,220,8],[221,0,221,1],[222,0,222,1],[222,3,222,6],[215,8,216,8],[186,8,187,8],[148,0,148,8],[173,0,173,1],[173,2,174,8],[175,0,175,2],[175,5,175,8],[308,0,340,8],[307,0,307,6],[302,0,304,1],[299,0,301,1],[296,0,298,1],[293,0,295,1],[290,0,292,1],[287,0,289,1],[209,0,209,2],[209,3,209,7],[211,0,211,1],[211,5,211,7],[212,0,212,1],[212,5,212,7],[214,0,214,2],[214,6,214,7],[215,3,216,3],[215,4,216,4],[215,5,216,5],[191,0,191,1],[191,3,191,4],[191,6,191,8],[192,0,192,1],[193,0,193,1],[193,3,193,6],[180,3,180,7],[180,0,180,2],[182,0,182,1],[182,5,182,7],[183,0,183,1],[183,5,183,7],[185,0,185,2],[185,6,185,7],[186,3,187,3],[186,4,187,4],[186,5,187,5],[186,6,187,7],[157,6,158,7],[157,8,158,8],[161,2,161,3],[153,0,153,1],[153,5,153,7],[154,0,154,1],[154,5,154,7],[151,0,151,2],[190,2,190,3],[81,0,81,3],[88,2,89,8],[92,0,92,2],[92,5,92,8],[93,0,93,2],[94,0,94,1],[94,2,95,8],[78,4,78,5],[84,1,84,2],[88,0,88,1],[90,0,91,2],[90,5,90,8],[85,4,85,7],[84,5,84,7],[87,0,87,3],[33,0,33,2],[18,0,18,2],[49,7,49,8],[36,0,36,1],[60,7,60,8],[30,7,30,8],[32,7,32,8],[49,2,49,4],[34,0,35,8],[58,0,62,1],[0,0,0,8],[3,6,3,8],[5,6,5,8],[5,0,5,5],[47,0,47,2],[12,0,12,1],[12,2,12,4],[19,0,19,8],[6,6,6,8],[7,6,7,8],[9,6,9,8],[6,0,6,5],[7,0,7,5],[10,6,10,8],[10,1,10,5],[21,1,21,8],[13,0,13,4],[9,1,9,5],[2,0,2,8],[15,0,15,1],[17,0,17,4],[37,0,39,8],[11,6,17,8],[1,0,1,8],[66,7,66,8],[41,0,46,8],[76,0,80,1],[52,0,56,1],[54,7,54,8],[49,0,49,1],[51,7,51,8],[51,4,51,5],[54,4,54,5],[60,4,60,5],[66,4,66,5],[72,4,72,5],[64,0,68,1],[78,7,78,8],[70,0,74,1],[72,7,72,8],[99,0,99,8],[102,0,102,5],[103,0,103,3],[105,0,105,2],[96,0,97,2],[96,5,96,8],[98,0,98,2],[123,0,123,1],[124,0,124,1],[116,4,116,5],[116,6,116,7],[109,3,109,5],[114,0,114,2],[114,6,114,7],[114,3,114,4],[106,0,106,1],[106,2,106,6],[106,7,106,8],[107,0,107,1],[107,3,107,5],[107,7,107,8],[109,0,109,2],[98,5,98,8],[127,0,127,1],[128,0,128,1],[128,3,128,4],[128,6,128,8],[124,3,124,6],[119,0,119,7],[121,2,121,3],[122,0,122,1],[122,3,122,4],[122,6,122,8],[130,0,130,8],[133,0,133,1],[133,2,133,3],[133,7,133,8],[133,5,133,6],[142,8,143,8],[135,0,135,8],[138,0,138,1],[138,5,138,7],[131,0,132,1],[131,2,132,3],[131,4,132,4],[131,5,132,6],[131,7,132,8],[136,0,136,8],[239,0,239,1],[239,3,239,5],[239,7,239,8],[242,2,242,3],[139,0,139,1],[139,5,139,7],[141,0,141,2],[141,6,141,7],[142,6,143,7],[142,5,143,5],[142,4,143,4],[142,3,143,3],[162,0,162,1],[162,3,162,4],[162,6,162,8],[163,0,163,1],[164,0,164,1],[164,3,164,6],[151,3,151,7],[156,0,156,2],[156,6,156,7],[157,3,158,3],[157,4,158,4],[157,5,158,5],[247,1,247,4],[249,0,249,7],[251,0,251,3],[251,5,251,8],[252,0,253,3],[252,5,253,8],[244,0,244,1],[244,3,244,4],[245,0,245,1],[245,3,245,4],[245,7,245,8],[269,2,271,2],[269,7,271,7],[269,6,271,6],[269,3,271,5],[268,8,271,8],[255,0,255,8],[256,0,257,8],[259,0,259,3],[259,5,259,8],[260,0,261,3],[260,5,261,8],[272,8,280,8],[281,8,283,8],[284,8,286,8],[272,2,274,2],[272,3,274,5],[275,3,277,5],[278,3,280,5],[278,6,280,6],[278,7,280,7],[275,6,277,6],[275,7,277,7],[272,6,274,6],[272,7,274,7],[278,2,280,2],[275,2,277,2],[236,0,236,7],[287,6,289,6],[287,7,289,7],[284,6,286,6],[284,7,286,7],[281,6,283,6],[281,7,283,7],[296,6,298,6],[296,7,298,7],[293,6,295,6],[293,7,295,7],[290,6,292,6],[290,7,292,7],[287,3,289,5],[272,0,274,1],[281,0,283,1],[284,0,286,1],[275,0,277,1],[278,0,280,1],[290,3,292,5],[263,0,263,8],[264,0,264,8],[268,0,271,1],[268,2,268,7],[287,8,295,8],[293,2,295,2],[290,2,292,2],[281,3,283,5],[284,3,286,5],[296,8,304,8],[302,2,304,2],[299,2,301,2],[296,2,298,2],[293,3,295,5],[296,3,298,5],[299,3,301,5],[287,2,289,2],[284,2,286,2],[281,2,283,2],[302,3,304,5],[302,6,304,6],[302,7,304,7],[299,6,301,6],[299,7,301,7]]}
["MINISTERUL AGRICULTURII ŞI DEZVOLTĂRII RURALE\nAGENŢIA PENTRU FINANŢAREA INVESTIŢIILOR RURALE                       "]
["ASOCIATIA GRUPUL DE ACȚIUNE LOCALĂ CETATEA BUCOVINEI-Apel de selectie nr.3/ Octombrie 2018"]
["Cererea de Finantare - Masura 5_5C,6A (actiuni corespondente sub-masurii 6.4) - Versiunea 03"]
[null,null,null,null,null,null,"SECŢIUNE GENERALĂ"]
[]
["DATE DE ÎNREGISTRARE",null,null,null,null,null,"NUME ŞI PRENUME DIRECTOR GENERAL ADJUNCT CRFIR"]
["Se completează de către Agenția pentru Finanțarea Investițiilor Rurale "]
["Oficiul Judetean /Centrul Regional- Programul FEADR pentru cereri de finanatre"]
[]
["OJFIR/CRFIR",null,null,null,null,null,"Semnătura Director OJFIR/Director  General Adjunct CRFIR\n\n\n"]
["Număr\ninregistrare",null,null,null,null,null,"Ştampila OJFIR/CRFIR"]
[]
["Data Înregistrării"]
["Numele şi prenumele persoanei care înregistrează: "]
[]
["Semnătura:"]
[]
["Data primirii cererii de finanţare la Contractare:"]
["Se completează de către solicitant"]
["A. PREZENTARE GENERALĂ"]
[]
["A1 Măsura"]
[]
[]
[]
[]
["Conţinutul cadru al documentaţiei tehnico-economice faza SF/DALI conform : "]
[]
[]
[]
[]
[]
[]
["A2 Denumire solicitant:"]
[]
[]
["A3 Titlu proiect:"]
[]
[]
[]
["A4 Descrierea succintă a proiectului:"]
[]
[]
[]
[]
[]
[]
["A5 Amplasarea proiectului:"]
[]
["Regiunea de dezvoltare:",null,null,null,null,null,"Judet"]
[]
["Obiectivele investiţiei",null,null,"Județ","Comună/Oraș",null,"Sat","Sat"]
[]
[]
[]
[]
[]
[]
[]
[]
[]
[]
[]
[]
[]
[]
[]
[]
[]
[]
[]
[]
[]
[]
[]
[]
[]
[]
[]
[]
[]
["                                                                                                              A6 Date despre tipul de proiect şi beneficiar:\n \n",null,null,null,"A 6.0 Tip zona "]
[]
["A 6.1",null,null,"   A 6.2",null,null,"      A 6.3"]
[]
["A 6.4  Prescorare",0,"puncte"]
[]
["Denumire consultant:"]
["Denumire:"]
[]
["      Cod Unic de Înregistrare / Codul de Înregistrare Fiscală",null,null,null,null,"Număr de înregistrare în registrul comerțului"]
[]
[]
["Denumire proiectant:"]
["Denumire:"]
[]
[" Cod Unic de Înregistrare / Codul de Înregistrare Fiscală",null,null,null,null,"Număr de înregistrare în registrul comerțului"]
[]
[]
[]
[]
[]
["B INFORMAŢII PRIVIND SOLICITANTUL"]
["B1 Descrierea solicitantului"]
[]
["B1.1 Informaţii privind solicitantul"]
["Data de înființare",null,"Cod Unic de Înregistrare și/sau Codul de Înregistrare Fiscală",null,null,null,null,"Statut juridic al solicitantului "]
[]
[]
["Număr de înregistrare în registrul comerțului"]
[]
["    Codul CAEN al activitatii/activitatilor finantate prin proiect"]
[]
[]
["Codul unic de înregistrare APIA",null,null,null,null,null,"Anul atribuirii codului"]
[]
["   Cod Registru Naţional al Exploataţiilor ANSVSA",null,null,null,null,null,"Anul atribuirii codului"]
[]
[]
["B1.2 Sediul social / Domiciliul stabil al solicitantului / Reşedinţa din România"]
[]
["Judetul",null,"                 Localitate",null,null,null,"Sat"]
[]
["Cod poştal",null,null,"Strada",null,null,null,null,"Nr."]
[]
["Bloc",null,"Scara",null,"Etaj",null,"Apartament",null,"Telefon fix "]
[]
["Telefon mobil",null,null,"Fax",null,null,"E-mail"]
[]
[]
["B1.3 Numele şi prenumele reprezentantului legal şi funcţia acestuia în cadrul organizaţiei, precum şi specimenul de semnătură:"]
["Nume",null,"Prenume",null,"Functie","           Reprezentant legal",null,"Specimen de semnatura"]
[]
[null,null,null,null,null,"LEGAL"]
[]
["B2 Informaţii referitoare la reprezentantul legal de proiect"]
["B2.1 Date de identitate ale reprezentantului legal de proiect (asociat unic/ asociat majoritar/ administrator) şi asociaţi:"]
[]
["Data nasterii",null,null,null,null,"Codul numeric personal"]
[]
[]
["Act de identitate",null,null,"Seria:","Numarul","Eliberat la data de:","de:",null,"Valabil pana la:"]
["BI","CI","Pasaport"]
[]
[]
[]
[]
[]
["Asociați *:  Se va completa/adauga un tabel pentru fiecare asociat (persoana fizica sau juridică), după caz."]
[]
[]
["Nume si prenume asociat :"]
[]
["Data nasterii",null,null,null,null,"Codul numeric personal"]
[]
[]
["Act de identitate",null,null,"Seria:","Numarul","Eliberat la data de:","de:",null,"Valabil pana la:"]
["BI","CI","Pasaport"]
[]
[]
["Adresa și domiciliul asociatului:"]
["Judet",null,"                 Localitate",null,null,null,"Sat"]
[]
["Cod poştal",null,null,"Strada",null,null,null,null,"Nr."]
[]
["Bloc",null,"Scara",null,"Etaj",null,"Apartament"]
[]
[]
[]
[]
[]
[]
[]
["Denumire:"]
[]
["CUI",null,null,null,null,"Număr  înregistrare ONRC "]
[]
[]
[]
[]
["Nume si prenume asociat  :"]
[]
["Data nasterii",null,null,null,null,"Codul numeric personal"]
[]
[]
["Act de identitate",null,null,"Seria:","Numarul","Eliberat la data de:","de:",null,"Valabil pana la:"]
["BI","CI","Pasaport"]
[]
[]
["Adresa și domiciliul asociatului:"]
["Judet",null,"                 Localitate",null,null,null,"Sat"]
[]
["Cod poştal",null,null,"Strada",null,null,null,null,"Nr."]
[]
["Bloc",null,"Scara",null,"Etaj",null,"Apartament"]
[]
[]
[]
[]
[]
[]
[]
["Denumire:"]
[]
["CUI",null,null,null,null,"Număr  înregistrare ONRC "]
[]
[]
[]
[]
["Nume si prenume asociat  :"]
[]
["Data nasterii",null,null,null,null,"Codul numeric personal"]
[]
[]
["Act de identitate",null,null,"Seria:","Numarul","Eliberat la data de:","de:",null,"Valabil pana la:"]
["BI","CI","Pasaport"]
[]
[]
["Adresa și domiciliul asociatului:"]
["Judet",null,"                 Localitate",null,null,null,"Sat"]
[]
["Cod poştal",null,null,"Strada",null,null,null,null,"Nr."]
[]
["Bloc",null,"Scara",null,"Etaj",null,"Apartament"]
[]
[]
[]
[]
[]
[]
[]
["Denumire:"]
[]
["CUI",null,null,null,null,"Număr  înregistrare ONRC "]
[]
[]
["B2.2 Domiciliul stabil al reprezentantului legal de proiect"]
[]
["Judet",null,null,"Localitate",null,null,null,"Sat"]
[]
[]
["Cod postal",null,"Strada",null,"Nr.","Bloc","Scara","Etaj","Apartament"]
[]
[]
["Telefon fix",null,null,"Telefon mobil",null,null,null,"Fax"]
[]
[null,"Email:"]
[]
[]
["B3 Informaţii privind contul bancar pentru proiect F.E.A.D.R. schema ajutor de stat"]
[]
["B3.1 Denumirea Băncii",null,null,null,null,"Denumirea Sucursalei/Filialei"]
[]
[]
[]
["B3.2 Adresa Băncii/Sucursalei"]
[]
[]
[]
["B3.3 Cod IBAN",null,null,null,null,"B3.4 Titularul contului bancar"]
[]
[]
[]
["C FINANȚĂRI NERAMBURSABILE SOLICITATE si/sau OBȚINUTE"]
["C. Solicitantul a mai obţinut finanţări nerambursabile ? Dacă Da, detaliaţi cu datele solicitate în tabelul de mai jos"]
[]
[]
[]
["DENUMIRE PROGRAM\nFINANȚARE ",null,"DA",null,null,null,null,null,"NU"]
[null,null,"Numar proiecte","Titlul Proiectelor și Numărul contractelor de finanțare",null,null,"Data finalizării ll/zz/aaaa","Valoarea sprijinului (EUR)"]
[]
[]
["Program National *"]
[]
[]
["Program National *"]
[]
[]
["Program National *"]
[]
[]
["SAPARD"]
[]
[]
["FEADR"]
[]
[]
["Alte programe europene *"]
[]
[]
["Alte programe europene *"]
[]
[]
["Alte programe europene *"]
[]
[]
["Alte programe internationale*"]
[]
[]
["Alte programe internationale*"]
[]
[]
["Alte programe internationale*"]
[]
[]
[]
[]
["* se completează de către solicitant cu denumirea programului"]
["                               \n REGULI DE COMPLETARE\n\n                                                                                                                                                                                                         \n\nCompletati devizele aferente capitolelor de cheltuieli, defalcat pe cheltuieli eligibile si neeligibile prin completarea tabelurilor incluse in acest document, respectiv :\n\n1. Tabelul \"Deviz financiar_cap3\" cuprinde cheltuielile aferente capitolului 3 - Cheltuieli pentru proiectare si asistenta tehnica, cheltuieli care trebuie sa se regaseasca atat in Bugetul Indicativ (Tabel \"Buget indicativ\" din cererea de finantare, partea specifica), cat si in Dezivul General din Studiul de Fezabilitate.\n\n2. Tabelul \"Devize obiect\" cuprinde formatul cadru al devizului pe obiect, iar solicitantul va completa atatea devize pe obiect cate obiecte de investitie sunt incluse in proiect. Suma tuturor devizelor pe obiect trebuie sa se regaseasca atat in Bugetul Indicativ (tabelul \"Buget indicativ\" din cererea de finantare, partea specifica), cat si in Dezivul General din Studiul de Fezabilitate.\nIn cazul in care proiectul de investitii presupune mai multe devize pe obiect, solicitantul va crea in documentul curent cate o copie a tabelului \"Devize obiect\" pentru fiecare deviz pe obiect si va detalia cheltuielile eligibile si neeligibile pe fiecare in parte.\n\n3. Tabelul \"cap.2+cap.5\" cuprinde cheltuieli aferente capitolelor 2 si 5 si trebuie sa se regaseasca atat in Bugetul Indicativ (tabel \"Buget indicativ\" din cererea de finantare, partea specifica), cat si Dezivul General din Studiul de Fezabilitate.\n\n4.Câmpurile \"Prescorare\"de la secțiunea A6 se autocompletează cu totalul din Grila criterii de selecție.\n\n5.Pentru indicatorii de tip numeric care nu fac obiectul investitiei sa va completa valoarea zero.\n\n6. Trebuie bifate si anexate toate documente (1.a, 5, 10, 11 si 18) de pe coloana “DEPUNERE - Obligatoriu pentru toate proiectele” din sectiunea E - Lista documentelor anexate.  \n\n\n\n\n\n"]

{"sheet":"Buget indicativ si Anexe","index":1,"n_rows":361,"n_cols":9,"rows_kept":361,"cut":false,"hidden":false,"merged":[[202,0,202,5],[203,0,203,8],[194,1,194,6],[108,1,108,6],[107,1,107,6],[106,1,106,6],[100,1,100,6],[9,0,9,5],[10,0,10,5],[39,0,39,5],[40,0,40,5],[41,0,41,5],[60,0,60,5],[201,0,201,1],[88,6,88,8],[201,6,201,7],[134,6,134,8],[35,0,35,5],[36,0,36,5],[14,0,14,5],[15,0,15,5],[17,0,17,5],[19,0,19,5],[23,0,23,5],[1,0,1,3],[11,0,11,5],[12,0,12,5],[34,0,34,5],[16,0,16,5],[20,0,20,5],[21,0,21,5],[22,0,22,5],[25,0,25,5],[26,0,26,5],[27,0,27,5],[28,0,28,5],[29,0,29,5],[3,0,3,8],[4,0,4,8],[7,0,7,5],[6,6,6,7],[8,0,8,8],[6,0,6,1],[18,0,18,5],[30,0,30,5],[31,0,31,5],[32,0,32,5],[13,0,13,5],[84,0,84,5],[105,1,105,6],[94,1,94,6],[84,7,84,8],[69,0,69,5],[48,0,48,5],[49,0,49,5],[85,0,85,5],[71,6,71,8],[64,0,64,5],[68,0,68,5],[85,7,85,8],[67,0,67,5],[50,0,50,5],[65,0,65,5],[66,0,66,5],[55,0,55,5],[56,0,56,5],[58,0,58,5],[51,0,51,5],[52,0,52,5],[53,0,53,5],[54,0,54,5],[92,1,92,6],[93,1,93,6],[24,0,24,5],[33,0,33,5],[38,0,38,5],[37,0,37,5],[83,0,83,5],[97,1,97,6],[42,0,42,3],[42,5,42,8],[66,6,66,8],[82,0,82,5],[44,0,44,5],[80,0,80,5],[81,0,81,5],[75,0,75,5],[76,0,76,5],[77,0,77,5],[78,0,78,5],[79,0,79,5],[74,0,74,5],[71,0,71,5],[72,0,72,5],[83,7,83,8],[73,0,73,5],[98,1,98,6],[99,1,99,6],[101,1,101,6],[102,1,102,6],[103,1,103,6],[104,1,104,6],[127,1,127,6],[116,1,116,6],[121,1,121,6],[122,1,122,6],[123,1,123,6],[124,1,124,6],[125,1,125,6],[109,1,109,6],[110,1,110,6],[43,0,43,5],[61,0,61,5],[47,0,47,5],[63,0,63,5],[59,0,59,5],[45,0,45,5],[46,0,46,5],[57,0,57,5],[62,0,62,5],[89,7,89,8],[150,1,150,6],[151,1,151,6],[153,1,153,6],[152,1,152,6],[154,1,154,6],[155,1,155,6],[131,7,131,8],[139,0,139,6],[140,1,140,6],[141,1,141,6],[142,1,142,6],[143,1,143,6],[135,1,135,6],[135,7,135,8],[136,0,136,8],[137,1,137,6],[138,1,138,6],[138,7,138,8],[129,0,129,6],[117,1,117,6],[118,1,118,6],[90,0,90,8],[91,0,91,8],[162,7,162,8],[161,6,161,8],[157,1,157,6],[158,0,158,8],[130,0,130,6],[111,1,111,6],[112,1,112,6],[113,1,113,6],[114,1,114,6],[144,1,144,6],[131,0,131,6],[132,1,132,6],[115,1,115,6],[157,7,157,8],[145,1,145,6],[146,0,146,6],[147,1,147,6],[148,1,148,6],[149,0,149,6],[128,1,128,6],[156,1,156,6],[119,1,119,6],[120,1,120,6],[126,1,126,6],[183,1,183,6],[184,1,184,6],[172,1,172,6],[176,0,176,6],[176,7,176,8],[171,1,171,6],[163,0,163,8],[164,1,164,6],[165,1,165,6],[166,1,166,6],[167,1,167,6],[168,1,168,6],[169,1,169,6],[170,1,170,6],[95,1,95,6],[96,1,96,6],[196,0,196,3],[198,0,198,8],[199,0,199,8],[188,1,188,6],[189,1,189,6],[193,0,193,6],[193,7,193,8],[173,1,173,6],[174,0,174,6],[175,0,175,6],[190,1,190,6],[191,0,191,6],[192,0,192,6],[177,1,177,6],[178,0,178,6],[185,1,185,6],[186,1,186,6],[187,1,187,6],[179,1,179,6],[180,1,180,6],[181,1,181,6],[182,1,182,6],[204,0,204,5],[205,0,205,5],[206,0,206,5],[207,0,207,5],[208,0,208,5],[209,0,209,5],[210,0,210,5],[211,0,211,5],[212,0,212,5],[213,0,213,5],[214,0,214,5],[215,0,215,5],[216,0,216,5],[217,0,217,5],[218,0,218,5],[219,0,219,5],[219,6,219,8],[220,0,220,5],[221,0,221,5],[222,0,222,5],[223,0,223,5],[224,0,224,5],[225,0,225,5],[226,0,226,5],[227,0,227,5],[228,0,228,5],[229,0,229,5],[230,0,230,5],[231,0,231,5],[232,0,232,5],[234,0,234,5],[235,0,235,5],[236,0,236,5],[237,0,237,5],[238,0,238,5],[238,6,238,8],[233,6,233,8],[239,0,239,5],[240,0,240,5],[241,0,241,5],[243,0,243,5],[243,6,243,8],[244,0,244,5],[245,0,245,5],[246,0,246,5],[247,0,247,5],[248,0,248,5],[249,0,249,5],[250,0,250,5],[251,0,251,5],[252,0,252,5],[253,0,253,5],[254,0,254,5],[255,0,255,5],[255,7,255,8],[256,0,256,5],[256,7,256,8],[257,0,257,5],[257,7,257,8],[260,6,260,8],[261,7,261,8],[267,1,267,6],[268,1,268,6],[269,1,269,6],[266,1,266,6],[265,1,265,6],[264,1,264,6],[263,0,263,8],[262,0,262,8],[270,1,270,6],[271,1,271,6],[272,1,272,6],[273,1,273,6],[274,1,274,6],[275,1,275,6],[276,1,276,6],[277,1,277,6],[278,1,278,6],[279,1,279,6],[280,1,280,6],[281,1,281,6],[282,1,282,6],[283,1,283,6],[284,1,284,6],[285,1,285,6],[286,1,286,6],[287,1,287,6],[288,1,288,6],[289,1,289,6],[290,1,290,6],[291,1,291,6],[292,1,292,6],[293,1,293,6],[294,0,294,6],[295,0,295,6],[296,0,296,6],[296,7,296,8],[297,1,297,6],[299,6,299,8],[300,1,300,6],[300,7,300,8],[301,0,301,8],[302,1,302,6],[303,1,303,6],[303,7,303,8],[304,0,304,6],[305,1,305,6],[306,1,306,6],[307,1,307,6],[308,1,308,6],[309,1,309,6],[310,1,310,6],[311,1,311,6],[312,1,312,6],[327,6,327,8],[322,1,322,6],[323,1,323,6],[324,1,324,6],[324,7,324,8],[325,0,325,8],[313,1,313,6],[314,0,314,6],[315,1,315,6],[316,1,316,6],[317,0,317,6],[318,1,318,6],[319,1,319,6],[320,1,320,6],[321,1,321,6],[328,7,328,8],[332,1,332,6],[333,1,333,6],[334,1,334,6],[335,1,335,6],[336,1,336,6],[337,1,337,6],[338,1,338,6],[341,0,341,6],[339,1,339,6],[340,1,340,6],[331,1,331,6],[330,1,330,6],[329,0,329,8],[342,0,342,6],[343,0,343,6],[343,7,343,8],[344,1,344,6],[345,0,345,6],[346,1,346,6],[347,1,347,6],[348,1,348,6],[349,1,349,6],[350,1,350,6],[360,0,360,6],[360,7,360,8],[351,1,351,6],[352,1,352,6],[353,1,353,6],[354,1,354,6],[355,1,355,6],[356,1,356,6],[357,1,357,6],[358,0,358,6],[359,0,359,6]]}
[]
["Buget indicativ- HG 907/2016"]
[]
["MINISTERUL AGRICULTURII ŞI DEZVOLTĂRII RURALE"]
["AGENŢIA PENTRU FINANŢAREA INVESTIŢIILOR RURALE"]
[]
["Procentul aferent intensitatii ",null,null,null,"Curs Euro",null,"Data intocmirii devizului general din SF/DALI",null,0]
["Submăsura",null,null,null,null,null,"19.2","_M5_5C,6A (coresp.6.4)"]
[]
["Denumirea capitolelor de cheltuieli",null,null,null,null,null,"Cheltuieli eligibile","Cheltuieli neeligibile","TOTAL"]
[null,null,null,null,null,null,"EURO","EURO","EURO"]
[1,null,null,null,null,null,2,3,4]
["Capitolul 1 Cheltuieli pentru obtinerea şi amenajarea terenului - total, din care:",null,null,null,null,null,{"$f":"G14+G15+G16+G17","v":0},{"$f":"H14+H15+H16+H17","v":0},{"$f":"G13+H13","v":0}]
["1.1 Obţinerea terenului",null,null,null,null,null,null,null,0]
["1.2 Amenajarea terenului",null,null,null,null,null,null,null,0]
["1.3 Amenajari pentru protecţia mediului şi aducerea terenului la starea iniţială",null,null,null,null,null,null,null,0]
["1.4 Cheltuieli pentru realocarea/protecția utilităților",null,null,null,null,null,null,null,0]
["Capitolul 2 Cheltuieli pentru asigurarea utilităţilor necesare obiectivului de investiții",null,null,null,null,null,null,null,0]
["Capitolul 3 Cheltuieli pentru proiectare şi asistenţă tehnică - total, din care:",null,null,null,null,null,{"$f":"G20+G24+G25+G26+G27+G35+G38","v":0},{"$f":"H20+H24+H25+H26+H27+H34+H35+H38","v":0},{"$f":"I20+I24+I25+I26+I27+I34+I35+I38","v":0}]
["3.1 Studii ",null,null,null,null,null,{"$f":"SUM(G21:G23)","v":0},{"$f":"SUM(H21:H23)","v":0},{"$f":"G20+H20","v":0}]
["       3.1.1. Studii de teren",null,null,null,null,null,null,null,0]
["       3.1.2. Raport privind impactul asupra mediului",null,null,null,null,null,null,null,0]
["       3.1.3. Alte studii specifice",null,null,null,null,null,null,null,0]
["3.2 Documentații-suport și cheltuieli pentru obţinerea de avize, acorduri şi autorizaţii",null,null,null,null,null,null,null,0]
["3.3 Expertiza tehnica",null,null,null,null,null,null,null,0]
["3.4. Certificarea performantei energetice si auditul energetic al clădirilor",null,null,null,null,null,null,null,0]
["3.5. Proiectare",null,null,null,null,null,{"$f":"SUM(G28:G33)","v":0},{"$f":"SUM(H28:H33)","v":0},{"$f":"SUM(G27:H27)","v":0}]
["     3.5.1. Temă de proiectare",null,null,null,null,null,null,null,0]
["     3.5.2. Studii de prefezabilitate",null,null,null,null,null,null,null,0]
["     3.5.3. Studii de fezabilitate/documentație de avizare a lucrărilor de intervenții si deviz general",null,null,null,null,null,null,null,0]
["     3.5.4. Documentațiile tehnice necesare în vederea obținerii avizelor/acordurilor/autorizațiilor",null,null,null,null,null,null,null,0]
["     3.5.5. Verificarea tehnică de calitate a proiectului tehnic și a detaliilor de execuție",null,null,null,null,null,null,null,0]
["     3.5.6. Proiect tehnic si detalii de execuție",null,null,null,null,null,null,null,0]
["3.6. Organizarea procedurilor de achiziţie",null,null,null,null,null,null,null,{"$f":"H34","v":0}]
["3.7 Consultanţă",null,null,null,null,null,{"$f":"G36","v":0},{"$f":"H36+H37","v":0},{"$f":"G35+H35","v":0}]
["     3.7.1. Managementul de proiect pentru obiectivul de investiții",null,null,null,null,null,null,null,{"$f":"G36+H36","v":0}]
["     3.7.2. Auditul financiar",null,null,null,null,null,null,null,{"$f":"H37","v":0}]
["3.8 Asistenţă tehnică",null,null,null,null,null,{"$f":"G39+G42","v":0},{"$f":"H39+H42","v":0},{"$f":"G38+H38","v":0}]
["    3.8.1. Asistență tehnică din partea proiectantului",null,null,null,null,null,{"$f":"G40+G41","v":0},{"$f":"H40+H41","v":0},{"$f":"G39+H39","v":0}]
["        3.8.1.1. pe perioada de execuție a lucrărilor",null,null,null,null,null,null,null,{"$f":"G40+H40","v":0}]
["        3.8.1.2. pentru participarea proiectantului la fazele incluse în programul de control al lucrărilor de execuție,avizat de către Inspectoratul de Stat în Construcții",null,null,null,null,null,null,null,{"$f":"G41+H41","v":0}]
["    3.8.2. Dirigenție de șantier",null,null,null,null,null,null,null,{"$f":"G42+H42","v":0}]
["Verificare încadrare cheltuieli capitolul 3 \n",null,null,null,"max. 10% "]
["Capitolul 4 Cheltuieli pentru investiţia de bază - total, din care:",null,null,null,null,null,{"$f":"G45+G46+G47+G48+G49+G50","v":0},{"$f":"H45+H46+H47+H48+H49+H50","v":0},{"$f":"G44+H44","v":0}]
["4.1 Construcţii şi instalaţii",null,null,null,null,null,0,null,0]
["4.2 Montaj utilaje, echipamente tehnologice și funcțiomale",null,null,null,null,null,null,null,0]
["4.3 Utilaje, echipamente tehnologice şi funcţionale care necesită montaj ",null,null,null,null,null,null,null,0]
["4.4 Utilaje, echipamente tehnologice și funcționale care nu necesită montaj și echipamente de transport",null,null,null,null,null,null,null,0]
["4.5 Dotări",null,null,null,null,null,null,0,0]
["4.6 Active necorporale",null,null,null,null,null,null,null,0]
["Capitolul 5 Alte cheltuieli - total, din care:",null,null,null,null,null,{"$f":"G52+G55+G62","v":0},{"$f":"H52+H55+H61+H62","v":0},0]
["5.1 Organizare de şantier",null,null,null,null,null,{"$f":"G53+G54","v":0},{"$f":"H53+H54","v":0},0]
["5.1.1 lucrări de construcţii şi instalaţii aferente organizării de şantier",null,null,null,null,null,null,null,0]
["        5.1.2 cheltuieli conexe orgănizării şantierului",null,null,null,null,null,null,null,0]
["5.2 Comisioane, cote, taxe, costul creditului",null,null,null,null,null,{"$f":"G57+G58+G60","v":0},{"$f":"H56+H57+H58+H59+H60","v":0},0]
["    5.2.1. Comisioanele și dobânzile aferente creditului băncii finanțatoare",null,null,null,null,null,null,null,{"$f":"H56","v":0}]
["    5.2.2. Cota aferentă ISC pentru controlul calitații lucrărilor de construcții",null,null,null,null,null,null,null,{"$f":"G57+H57","v":0}]
["    5.2.3. Cota aferentă ISC pentru controlul statului în amenajarea teritoriului, urbanism și pentru autorizarea lucrărilor de constructii",null,null,null,null,null,null,null,{"$f":"G58+H58","v":0}]
["    5.2.4. Cota aferentă Casei Sociale a Constructorilor - CSC",null,null,null,null,null,null,null,{"$f":"H59","v":0}]
["    5.2.5. Taxe pentru acorduri, avize conforme și autorizația de construire/desființare",null,null,null,null,null,null,null,{"$f":"G60+H60","v":0}]
["5.3 Cheltuile diverse și neprevăzute",null,null,null,null,null,null,null,{"$f":"H61","v":0}]
["5.4 Cheltuieli pentru informare și publicitate",null,null,null,null,null,null,null,{"$f":"G62+H62","v":0}]
["Capitolul 6 Cheltuieli pentru probe tehnologice și teste - total, din care:",null,null,null,null,null,{"$f":"G65","v":0},{"$f":"H65+H64","v":0},{"$f":"G63+H63","v":0}]
["6.1 Pregătirea personalului de exploatare",null,null,null,null,null,null,null,{"$f":"H64","v":0}]
["6.2 Probe tehnologice şi teste",null,null,null,null,null,null,null,{"$f":"G65+H65","v":0}]
["TOTAL  GENERAL",null,null,null,null,null,{"$f":"G13+G18+G19+G44+G51+G63","v":0},{"$f":"H13+H18+H19+H44+H51+H63","v":0},{"$f":"G66+H66","v":0}]
["Verificare actualizare - actualizare mai mică de 5% din valoarea eligibila",null,null,null,null,null,{"$f":"G68/G66*100","v":{"$error":"#DIV/0!"}}]
["ACTUALIZARE Cheltuieli Eligibile (max 5%)",null,null,null,null,null,null,null,{"$f":"G68","v":0}]
["TOTAL GENERAL CU ACTUALIZARE",null,null,null,null,null,{"$f":"G66+I68","v":0},{"$f":"H66","v":0},{"$f":"G69+H69","v":0}]
["Valoare TVA",null,null,null,null,null,null,null,0]
[]
["TOTAL GENERAL inclusiv TVA",null,null,null,null,null,{"$f":"I69+I70","v":0}]
[null,null,null,null,null,null,"LEI","EURO"]
["VALOARE TOTALĂ",null,null,null,null,null,{"$f":"H74*I7","v":0},{"$f":"G72","v":0}]
["VALOARE ELIGIBILĂ",null,null,null,null,null,{"$f":"H75*I7","v":0},{"$f":"G69","v":0}]
["VALOARE NEELIGIBILĂ",null,null,null,null,null,{"$f":"H76*I7","v":0},{"$f":"H74-H75","v":0}]
["PLAN FINANCIAR",null,null,null,null,null,"Cheltuieli eligibile  EURO","Cheltuieli neeligibile  EURO","Total"]
["Ajutor public nerambursabil (contribuţie UE şi cofinanţare naţională)",null,null,null,null,null,0,null,{"$f":"G78","v":0}]
["Cofinanțare privată, din care:",null,null,null,null,null,{"$f":"G80+G81","v":0},{"$f":"H80+H81","v":0},{"$f":"G79+H79","v":0}]
["                                                       - autofinantare",null,null,null,null,null,null,null,{"$f":"G80+H80","v":0}]
["                                                       - imprumuturi",null,null,null,null,null,null,null,{"$f":"G81+H81","v":0}]
["Buget local",null,null,null,null,null,null,null,{"$f":"G82+H82","v":0}]
["TOTAL PROIECT",null,null,null,null,null,{"$f":"G78+G79+G82","v":0},{"$f":"H79+H82","v":0},{"$f":"G83+H83","v":0}]
["Procent contribuţie publică",null,null,null,null,null,null,"%"]
["Avans solicitat",null,null,null,null,null,0]
["Procent avans solicitat ca procent din ajutorul public nerambursabil",null,null,null,null,null,{"$f":"G85/G78*100","v":{"$error":"#DIV/0!"}},"Suma avans mai mica  de 50% din ajutorul public"]
[]
[]
[null,null,null,null,null,null,"Anexa A1 - HG 907/2016"]
[null,null,null,null,null,null,null,"octombrie 2018"]
["Deviz financiar- Capitolul 3 - Cheltuieli pentru proiectare şi asistenţa tehnică - EURO"]
[]
["Nr. Crt","Specificatie",null,null,null,null,null,"Valoare eligibila","Valoare neeligibila"]
[3.1,"Cheltuieli pentru studii - total din care",null,null,null,null,null,{"$f":"SUM(H95:H97)","v":0},{"$f":"SUM(I95:I97)","v":0}]
[null,"3.1.1 Studii de teren: studii geotehnice, geologice, hidrologice, hidrogeotehnice, fotogrammetrice, topografice şi de stabilitate a terenului pe care se amplasează obiectivul de investiţie"]
[null,"3.1.2 Raport privind impactul asupra mediului"]
[null,"3.1.3. Studii de specialitate necesare în funcție de specificul investiției"]
[3.2,"Documentații-suport și cheltuieli pentru obţinerea de avize, acorduri şi autorizaţii",null,null,null,null,null,{"$f":"H99+H100+H101+H104+H105+H106+H107","v":0},{"$f":"I99+I100+I101+I102+I103+I104+I105+I106+I107","v":0}]
[null,"1. obţinerea/prelungirea valabilităţii ceritificatului de urbanism"]
[null,"2. obţinerea/prelungirea valabilităţii autorizaţiei de construire/ desfiinţare"]
[null,"3. obţinerea avizelor şi acordurilor pentru racorduri şi branşamente la reţelele publice de alimentare cu apă, canalizare, alimentare cu gaze, alimentare cu agent termic, energie electrică, telefonie"]
[null,"4. obţinerea certificatului de nomenclatură stradală şi adresă"]
[null,"5. întocmirea documentaţiei, obţinerea numărului cadastral provizoriu şi înregistrarea terenului în Cartea Funciară"]
[null,"6. obţinerea actului administrativ al autorității competente pentru protecția mediului"]
[null,"7. obţinerea avizului de protecție civilă"]
[null,"8. avizul de specialitate în cazul obiectivelor de patrimoniu"]
[null,"9. alte avize, acorduri şi autorizaţii "]
[3.3,"Cheltuieli pentru expertizarea tehnică a construcțiilor existente, a structurilor și/sau, după caz, a proiectelor tehnice, inclusiv întocmirea de către expertul tehnic a raportului de expertiză tehnică"]
[3.4,"Cheltuieli pentru certificarea performanței energetice și auditul energetic al clădirilor"]
[3.5,"Cheltuieli pentru proiectare",null,null,null,null,null,{"$f":"SUM(H111:H116)","v":0},{"$f":"SUM(I111:I116)","v":0}]
[null,"3.5.1 Temă de proiectare"]
[null,"3.5.2 Studiu de prefezabilitate"]
[null,"3.5.3 Studiu de fezabilitate/documentație de avizare a lucrărilor de intervenții și deviz general"]
[null,"3.5.4 Documentațiile tehnice necesare în vederea obținerii avizelor / acordurilor / autorizațiilor"]
[null,"3.5.5 Verificarea tehnică de calitate a proiectului tehnic și a detaliilor de execuție"]
[null,"3.5.6 Proiect tehnic și detalii de execuție"]
[3.6,"Cheltuieli aferente organizării și derularii procedurilor de achiziții publice",null,null,null,null,null,null,{"$f":"SUM(I118:I121)","v":0}]
[null,"1. Cheltuieli aferente întocmirii documentației de atribuire și multiplicării acesteia (exclusiv cele cumparate de ofertant)"]
[null,"2. Cheltuieli cu onorariile, transportul, cazarea și diurna membrilor desemnați în comisiile de evaluare"]
[null,"3. Anunțuri de intenție, de participare și de atribuire a contractelor, corespondență prin poștă, fax, poștă electronică în legătură cu procedurile de achiziție publică"]
[null,"4. Cheltuieli aferente organizării și derulării procedurilor de achiziție publică"]
[3.7,"Cheltuieli pentru consultanţă ",null,null,null,null,null,{"$f":"H123","v":0},{"$f":"I123+I124","v":0}]
[null,"3.7.1 Managementul de proiect pentru obiectivul de investiții"]
[null,"3.7.2 Auditul financiar"]
[3.8,"Cheltuieli pentru asistenţa tehnică",null,null,null,null,null,{"$f":"H126+H129","v":0},{"$f":"I126+I129","v":0}]
[null,"3.8.1 Asistență tehnică din partea proiectantului",null,null,null,null,null,{"$f":"H127+H128","v":0},{"$f":"I127+I128","v":0}]
[null,"3.8.1.1. pe perioada de execuție a lucrărilor"]
[null,"3.8.1.2. pentru participarea proiectantului la fezele incluse în programul de control al lucrărilor de execuție, avizat de către Inspectoratul de Stat în Construcții"]
[null,"3.8.2. Dirigenție de șantier, asigurată de personal tehnic de specialitate, autorizat"]
["Total valoare fără TVA",null,null,null,null,null,null,{"$f":"H94+H98+H108+H109+H110+H117+H122+H125","v":0},{"$f":"I94+I98+I108+I109+I110+I117+I122+I125","v":0}]
["Valoare TVA (aferentă cheltuielilor eligibile şi neeligibile)"]
["         TOTAL DEVIZ FINANCIAR 1 (inclusiv TVA)",null,null,null,null,null,null,{"$f":"H130+H131+I130+I131","v":0}]
[]
[]
[null,null,null,null,null,null,"Anexa A2 - HG 907/2016"]
[null,null,null,null,null,null,null,"octombrie 2018"]
["DEVIZ PE OBIECT*"]
[]
["Nr.crt","Denumire",null,null,null,null,null,"Valoarea pe categorii de lucrări, fară TVA - EURO"]
[" Cap. 4 + Cheltuieli pentru investiția de bază                                                                                                             I – LUCRARI DE CONSTRUCTII SI INSTALATII",null,null,null,null,null,null,"Valoare eligibila","Valoare neeligibila"]
[4.0999999999999996,"Construcții și intalații"]
[null,"4.1.1 Terasamente, sistematizare pe verticală și amenajări exterioare"]
[null,"4.1.2 Rezistență"]
[null,"4.1.3 Arhitectură"]
[null,"4.1.4 Instalații"]
[null,"TOTAL I (fara TVA)",null,null,null,null,null,{"$f":"SUM(H142:H145)","v":0},{"$f":"SUM(I142:I145)","v":0}]
["     II - MONTAJ"]
[4.2,"Montaj utilaje, echipamente tehnologice și funcționale"]
[null,"TOTAL II (fara TVA)",null,null,null,null,null,{"$f":"H148","v":0},{"$f":"I148","v":0}]
["    III - PROCURARE"]
[4.3,"Utilaje, echipamente tehnologice și funcționale care necesită montaj"]
[4.4000000000000004,"Utilaje, echipamente tehnologice și funcționale care nu necesită montaj și echipamente de transport"]
[4.5,"Dotări"]
[4.5999999999999996,"Active necorporale"]
[null,"TOTAL III (fara TVA)",null,null,null,null,null,{"$f":"SUM(H151:H154)","v":0},{"$f":"SUM(I151:I154)","v":0}]
[null,"TOTAL ( TOTAL I + TOTAL II +TOTAL III) fără TVA",null,null,null,null,null,{"$f":"H146+H149+H155","v":0},{"$f":"I146+I149+I155","v":0}]
[null,"TVA aferent cheltuielilor eligibile şi neeligibile"]
[null,"TOTAL DEVIZ PE OBIECT (inclusiv TVA)",null,null,null,null,null,{"$f":"H156+I156+H157+I157","v":0}]
["*) Se înscrie denumirea obiectului de construcţie sau intervenţie"]
[]
[]
[null,null,null,null,null,null,"Anexa A3 - HG 907/2016"]
[null,null,null,null,null,null,null,"octombrie 2018"]
["Deviz capitolul 2- Cheltuieli pentru asigurarea utilităţilor necesare obiectivului - EURO"]
["Nr.crt","Specificatie",null,null,null,null,null,"Valoare \neligibilă","Valoare neeligibilă"]
[1,"Alimentare cu apa"]
[2,"Canalizare"]
[3,"Alimentare cu gaze naturale"]
[4,"Alimentare cu agent termic"]
[5,"Alimentare cu energie electrica"]
[6,"Telecomunicatii (telefonie, radio-tv, etc.)"]
[7,"Drumuri de acces"]
[8,"Căi ferate industriale"]
[9,"Alte utilități"]
["TOTAL DEVIZ CAPITOLUL 2",null,null,null,null,null,null,{"$f":"SUM(H166:H174)","v":0},{"$f":"SUM(I166:I174)","v":0}]
["Valoare TVA aferentă cheltuielilor eligibile și neeligibile"]
["         TOTAL DEVIZ CAPITOLUL 2 (inclusiv TVA)",null,null,null,null,null,null,{"$f":"H175+I175+H176+I176","v":0}]
[]
["Deviz capitolul 5 - Alte cheltuieli - EURO"]
["Nr.crt","Specificatie",null,null,null,null,null,"Valoare \neligibilă","Valoare  neeligibilă"]
[5.0999999999999996,"Organizarea de santier",null,null,null,null,null,{"$f":"H182+H183","v":0},{"$f":"I182+I183","v":0}]
[null,"5.1.1 Lucrări de construcții și instalații aferente organizării de șantier"]
[null,"5.1.2 Cheltuieli conexe organizării de șantierului"]
[5.2,"Comisioane, cote, taxe, costul creditului",null,null,null,null,null,{"$f":"H186+H187+H189","v":0},{"$f":"SUM(I185:I189)","v":0}]
[null,"5.2.1 Comisioanele și dobănzile aferente creditului băncii finanțatoare"]
[null,"5.2.2 Cota aferenta ISC pentru controlul calității lucrărilor de construcții"]
[null,"5.2.3 Cota aferenta ISC pentru controlul statului în amenajarea teritoriului, urbanism si pentru autorizarea lucrarilor de constructii"]
[null,"5.2.4 Cota aferenta Casei sociale a Constructorilor - CSC"]
[null,"5.2.5 Taxe pentru acorduri, avize conforme și autorizația de construire/desființare"]
[5.3,"Cheltuieli diverse si neprevazute"]
[5.4,"Cheltuieli pentru informare și publicitate"]
["TOTAL DEVIZ CAPITOLUL 5",null,null,null,null,null,null,{"$f":"H181+H184+H191","v":0},{"$f":"I181+I184+I190+I191","v":0}]
["Valoare TVA aferenta cheltuielilor eligibile si neeligibile"]
["TOTAL DEVIZ CAPITOLUL 5 (inclusiv TVA)",null,null,null,null,null,null,{"$f":"H192+I192+H193+I193","v":0}]
[]
[]
["Buget indicativ- HG 28/2008"]
[]
["MINISTERUL AGRICULTURII ŞI DEZVOLTĂRII RURALE"]
["AGENŢIA PENTRU FINANŢAREA INVESTIŢIILOR RURALE"]
[]
["Procentul aferent intensitatii ",null,null,null,"Curs Euro",null,"Data intocmirii devizului general din SF"]
["Submăsura",null,null,null,null,null,"19.2","_M5_5C,6A (coresp.6.4)"]
[]
["Denumirea capitolelor de cheltuieli",null,null,null,null,null,"Cheltuieli eligibile","Cheltuieli neeligibile","TOTAL"]
[null,null,null,null,null,null,"EURO","EURO","EURO"]
[1,null,null,null,null,null,2,3,4]
["Capitolul 1 Cheltuieli pentru obtinerea şi amenajarea terenului - total, din care:",null,null,null,null,null,{"$f":"G209+G210+G211","v":0},{"$f":"H209+H210+H211","v":0},{"$f":"G208+H208","v":0}]
["1.1 Cheltuieli pentru obţinerea terenului",null,null,null,null,null,null,null,0]
["1.2 Cheltuieli pentru amenajarea terenului",null,null,null,null,null,null,null,0]
["1.3 Amenajari pentru protecţia mediului şi aducerea terenului la starea iniţială",null,null,null,null,null,null,null,0]
["Capitolul 2 Cheltuieli pentru asigurarea utilităţilor necesare obiectivului ",null,null,null,null,null,null,null,0]
["Capitolul 3 Cheltuieli pentru proiectare şi asistenţă tehnică - total, din care:",null,null,null,null,null,{"$f":"G214+G215+G216+G217+G218+G219","v":0},{"$f":"H214+H215+H216+H217+H218+H219","v":0},{"$f":"I214+I215+I20+I217+I218+I219","v":0}]
["3.1 Studii de teren",null,null,null,null,null,null,null,{"$f":"G214+H214","v":0}]
["3.2 Obtinerea de avize acorduri si autorizatii",null,null,null,null,null,null,null,0]
["3.3 Proiectare si engineering",null,null,null,null,null,null,null,0]
["3.4 Organizarea procedurilor de achizitie publica",null,null,null,null,null,null,null,0]
["3.5 Consultanta",null,null,null,null,null,null,null,0]
["3.6 Asistenta tehnica",null,null,null,null,null,null,null,0]
["Verificare incadrare cheltuieli capitol 3           max 10%",null,null,null,null,null,{"$f":"G213/G238*100","v":{"$error":"#DIV/0!"}}]
["Capitolul 4 Cheltuieli pentru investiţia de bază - total, din care:",null,null,null,null,null,{"$f":"G222+G223+G224+G225+G226+G227","v":0},{"$f":"H222+H223+H224+H225+H226+H227","v":0},{"$f":"G221+H221","v":0}]
["4.1 Construcţii şi instalaţii",null,null,null,null,null,null,null,0]
["4.2 Montaj utilaj tehnologic",null,null,null,null,null,null,null,0]
["4.3 Utilaje, echipamente tehnologice şi funcţionale montaj (procurare) ",null,null,null,null,null,null,null,0]
["4.4 Utilaje si echipamente fara montaj, mijloace de transport, alte achizitii specifice",null,null,null,null,null,null,null,0]
["4.5 Dotări",null,null,null,null,null,null,null,0]
["4.6 Active necorporale",null,null,null,null,null,null,null,0]
["Capitolul 5 Alte cheltuieli - total, din care:",null,null,null,null,null,{"$f":"G229+G232+G233","v":0},{"$f":"H229+H232+H233","v":0},0]
["5.1 Organizare de şantier",null,null,null,null,null,{"$f":"G230+G231","v":0},{"$f":"H230+H231","v":0},0]
["5.1.1 lucrări de construcţii şi instalaţii aferente organizării de şantier",null,null,null,null,null,null,null,0]
["        5.1.2 cheltuieli conexe orgănizării şantierului",null,null,null,null,null,null,null,0]
["5.2 Comisioane, cote, taxe, costul creditului",null,null,null,null,null,0,0,0]
["5.3 Cheltuile diverse și neprevăzute",null,null,null,null,null,null,null,{"$f":"H233","v":0}]
["    Procent cheltuieli diverse şi neprevăzute",null,null,null,"  %",null,"%"]
["Capitolul 6 Cheltuieli pentru darea in exploatare - total, din care:",null,null,null,null,null,{"$f":"G237","v":0},{"$f":"H237+H236","v":0},{"$f":"G235+H235","v":0}]
["6.1 Pregătirea personalului de exploatare",null,null,null,null,null,null,null,{"$f":"H236","v":0}]
["6.2 Probe tehnologice şi teste",null,null,null,null,null,null,null,{"$f":"G237+H237","v":0}]
["TOTAL  GENERAL",null,null,null,null,null,{"$f":"G208+G212+G213+G221+G228+G235","v":0},{"$f":"H208+H212+H213+H221+H228+H235","v":0},{"$f":"G238+H238","v":0}]
["Verificare actualizare - actualizare mai mică de 5% din valoarea eligibila",null,null,null,null,null,{"$f":"G240/G238*100","v":{"$error":"#DIV/0!"}}]
["ACTUALIZARE Cheltuieli Eligibile (max 5%)",null,null,null,null,null,null,null,{"$f":"G240","v":0}]
["TOTAL GENERAL CU ACTUALIZARE",null,null,null,null,null,{"$f":"G238+I240","v":0},{"$f":"H238","v":0},{"$f":"G241+H241","v":0}]
["Valoare TVA",null,null,null,null,null,null,null,{"$f":"G242+H242","v":0}]
[]
["TOTAL GENERAL inclusiv TVA",null,null,null,null,null,{"$f":"I241+I242","v":0}]
[null,null,null,null,null,null,"LEI","EURO"]
["VALOARE TOTALĂ",null,null,null,null,null,{"$f":"H246*C203","v":0},{"$f":"G244","v":0}]
["VALOARE ELIGIBILĂ",null,null,null,null,null,{"$f":"H247*C203","v":0},{"$f":"G241","v":0}]
["VALOARE NEELIGIBILĂ",null,null,null,null,null,{"$f":"H248*C203","v":0},{"$f":"H246-H247","v":0}]
["PLAN FINANCIAR",null,null,null,null,null,"Cheltuieli eligibile  EURO","Cheltuieli neeligibile  EURO","Total"]
["Ajutor public nerambursabil (contribuţie UE şi cofinanţare naţională)",null,null,null,null,null,null,null,{"$f":"G250","v":0}]
["Cofinanțare privată, din care:",null,null,null,null,null,{"$f":"G252+G253","v":0},{"$f":"H252+H253","v":0},{"$f":"G251+H251","v":0}]
["                                                       - autofinantare",null,null,null,null,null,null,null,{"$f":"G252+H252","v":0}]
["                                                       - imprumuturi",null,null,null,null,null,null,null,{"$f":"G253+H253","v":0}]
["Buget local",null,null,null,null,null,null,null,{"$f":"G254+H254","v":0}]
["TOTAL PROIECT",null,null,null,null,null,{"$f":"G250+G251+G254","v":0},{"$f":"H251+H254","v":0},{"$f":"G255+H255","v":0}]
["Procent contribuţie publică",null,null,null,null,null,{"$f":"G250/G255*100","v":{"$error":"#DIV/0!"}},"%"]
["Avans solicitat"]
["Procent avans solicitat ca procent din ajutorul public nerambursabil",null,null,null,null,null,{"$f":"G257/G250*100","v":{"$error":"#DIV/0!"}},"Suma avans mai mica  de 50% din ajutorul public"]
[]
[]
[null,null,null,null,null,null,"Anexa A1 - HG 28/2008"]
[null,null,null,null,null,null,null,"octombrie 2018"]
["Deviz financiar- Capitolul 3 - Cheltuieli pentru proiectare şi asistenţa tehnică - EURO"]
[]
["Nr. Crt","Specificatie",null,null,null,null,null,"Valoare eligibila","Valoare neeligibila"]
[1,"Cheltuieli pentru studii de teren (geotehnice, geologice, hidrologice, hidrogeologice, fotogrammetrice, topografice si de stabilitate a terenului pe care se amplaseaza obiectivul de investitii)",null,null,null,null,null,0,0]
[2,"Cheltuieli pentru obţinere de avize, acorduri şi autorizaţii - total, din care:",null,null,null,null,null,{"$f":"SUM(H268:H277)","v":0},{"$f":"SUM(I268:I277)","v":0}]
[null,"1. obţinerea/prelungirea valabilităţii ceritificatului de urbanism"]
[null,"2. obţinerea/prelungirea valabilităţii autorizaţiei de construire/ desfiinţare, obtinere autorizatii de scoatere din circuitul agricol"]
[null,"3. obţinerea avizelor şi acordurilor pentru racorduri şi branşamente la reţelele publice de apă, canalizare, gaze, termoficare, energie electrică, telefonie, etc"]
[null,"4. obţinere aviz sanitar, sanitar-veterinar şi fitosanitar"]
[null,"5. obţinerea certificatului de nomenclatură stradală şi adresa"]
[null,"6. întocmirea documentaţiei, obţinerea numărului Cadastral provizoriu şi\nînregistrarea terenului în Cartea Funciară"]
[null,"7. obţinerea avizului PSI"]
[null,"8. obţinerea acordului de mediu"]
[null,"9. cai ferate"]
[null,"10. alte avize, acorduri şi autorizaţii solicitate prin lege"]
[3,"Proiectare şi inginerie - total, din care:",null,null,null,null,null,{"$f":"SUM(H279:H284)","v":0},{"$f":"SUM(I279:I284)","v":0}]
[null,"a. studiu de prefezabilitate"]
[null,"b. studiu de fezabilitate"]
[null,"c. proiect tehnic"]
[null,"d. detalii de execuţie"]
[null,"e. verificarea tehnică a proiectării"]
[null,"f. elaborarea certificatului de performanţă energetică a clădirii"]
[null,"2. Documentaţii necesare pentru obţinerea acordurilor, avizelor şi autorizaţiilor aferente obiectivului de investiții"]
[null,"3. Cheltuielile pentru expertiza tehnică efectuată pentru construcţii începute şi neterminate sau care urmează a fi modificate prin proiect (modernizări, consolidări  etc.)"]
[null,"4. Cheltuielile pentru efectuarea auditului energetic"]
[4,"Organizarea procedurilor de achiziţie",null,null,null,null,null,0,0]
[5,"Cheltuieli pentru consultanţă - total din care",null,null,null,null,null,{"$f":"H290","v":0},{"$f":"I290+I291","v":0}]
[null,"1. plata serviciilor de consultanţă la elaborarea memoriului justificativ, studiilor de piaţă, de evaluare, la întocmirea cererii de finanţare"]
[null,"2. plata serviciilor de consultanţă în domeniul managementului investiţiei sau administrarea contractului de execuţie"]
[6,"Cheltuieli pentru asistenţa tehnică - total din care",null,null,null,null,null,{"$f":"SUM(H293:H294)","v":0},{"$f":"SUM(I293:I294)","v":0}]
[null,"1. asistenţa tehnică din partea proiectantului în cazul când aceasta nu intră în tarifarea proiectării"]
[null,"2. plata diriginţilor de şantier desemnaţi de autoritatea contractantă, autorizaţi conform prevederilor legale pentru verificarea execuţiei lucrărilor de construcţii şi instalaţii"]
["Total valoare fără TVA",null,null,null,null,null,null,{"$f":"H266+H267+H278+H289+H292+H288","v":0},{"$f":"I266+I267+I278+I289+I292","v":0}]
["Valoare TVA (aferentă cheltuielilor eligibile şi neeligibile)"]
["         TOTAL DEVIZ FINANCIAR 1 (inclusiv TVA)",null,null,null,null,null,null,{"$f":"H295+H296+I295+I296","v":0}]
[]
[]
[null,null,null,null,null,null,"Anexa A2 - HG 28/2008"]
[null,null,null,null,null,null,null,"octombrie 2018"]
["DEVIZ PE OBIECT*"]
[]
["Nr.crt","Denumire",null,null,null,null,null,"Valoarea pe categorii de lucrări, fară TVA - EURO"]
[" Cap. 4  Cheltuieli pentru investiția de bază                                                                                                             I – LUCRARI DE CONSTRUCTII SI INSTALATII",null,null,null,null,null,null,"Valoare eligibila","Valoare neeligibila"]
[1,"Terasamente"]
[2,"Constructii rezistenta (fundatii, structura de rezistenta) si arhitectura (inchideri exterioare, compartimentari, finisaje)"]
[3,"Izolatii"]
[4,"Instalatii electrice"]
[5,"Instalatii sanitare"]
[6,"Instalaţii de încălzire, ventilare, climatizare. PSI, radio-tv, intranet"]
[7,"Instalatii de alimentare cu gaze naturale"]
[8,"Instalatii de telecomunicatii"]
[null,"TOTAL I (fara TVA)",null,null,null,null,null,{"$f":"SUM(H306:H313)","v":0},{"$f":"SUM(I306:I313)","v":0}]
["     II - MONTAJ"]
[9,"Montaj utilaje, echipamente tehnologice"]
[null,"TOTAL II (fara TVA)",null,null,null,null,null,{"$f":"H316","v":0},{"$f":"I316","v":0}]
["    III - PROCURARE"]
[10,"Utilaje si echipamente tehnologice "]
[11,"Utilaje şi echipamente de transport"]
[12,"Dotări"]
[null,"TOTAL III (fara TVA)",null,null,null,null,null,{"$f":"SUM(H319:H321)","v":0},{"$f":"SUM(I319:I321)","v":0}]
[null,"TOTAL ( TOTAL I + TOTAL II +TOTAL III) fără TVA",null,null,null,null,null,{"$f":"H314+H317+H322","v":0},{"$f":"I314+I317+I322","v":0}]
[null,"TVA aferent cheltuielilor eligibile şi neeligibile"]
[null,"TOTAL DEVIZ PE OBIECT (inclusiv TVA)",null,null,null,null,null,{"$f":"H323+I323+H324+I324","v":0}]
["*) Se înscrie denumirea obiectului de construcţie sau intervenţie"]
[]
[null,null,null,null,null,null,"Anexa A3 - HG 28/2008"]
[null,null,null,null,null,null,null,"octombrie 2018"]
["Deviz capitolul 2- Cheltuieli pentru asigurarea utilităţilor necesare obiectivului - EURO"]
["Nr.crt","Specificatie",null,null,null,null,null,"Valoare \neligibilă","Valoare  neeligibilă"]
[1,"Alimentare cu apa"]
[2,"Canalizare"]
[3,"Alimentare cu gaze naturale"]
[4,"Alimentare cu agent termic"]
[5,"Alimentare cu energie electrica"]
[6,"Telecomunicatii (telefonie, radio-tv, etc.)"]
[7,"Alte tipuri de retele exterioare"]
[8,"Drumuri de acces"]
[9,"Căi ferate industriale"]
[10,"Cheltuieli aferente racordării la reţele de utilităţi"]
["TOTAL DEVIZ CAPITOLUL 2",null,null,null,null,null,null,{"$f":"SUM(H332:H339)","v":0},{"$f":"SUM(I332:I339)","v":0}]
["Valoare TVA aferentă cheltuielilor eligibile și neeligibile"]
["         TOTAL DEVIZ CAPITOLUL 2 (inclusiv TVA)",null,null,null,null,null,null,{"$f":"H342+I342+H343+I343","v":0}]
[]
["Deviz capitolul 5 - Alte cheltuieli - EURO"]
["Nr.crt","Specificatie",null,null,null,null,null,"Valoare \neligibilă","Valoare  neeligibilă"]
[5.0999999999999996,"Organizarea de santier",null,null,null,null,null,{"$f":"H349+H350","v":0},{"$f":"I349+I350","v":0}]
[null,"5.1.1 Lucrări de construcții și instalații aferente organizării de șantier"]
[null,"5.1.2 Cheltuieli conexe organizării de șantierului"]
[5.2,"Comisioane, taxe",null,null,null,null,null,{"$f":"H353+H354+H357","v":0},{"$f":"SUM(I352:I357)","v":0}]
[null,"comisionul băncii finanţatoare"]
[null,"cota aferentă Inspectoratului de Stat în Construcţii pentru\ncontrolul calităţii lucrărilor de construcţii"]
[null,"cota pentru controlul statului în amenajarea teritoriului,\nurbanism şi pentru autorizarea lucrărilor de construcţii"]
[null,"prime de asigurare din sarcina autorităţii contractante"]
[null,"alte cheltuieli de aceeaşi natură, stabilite în condiţiile legii"]
[null,"cota aferentă Casei Sociale a Constructorilor"]
[5.3,"Cheltuieli diverse si neprevazute"]
["TOTAL DEVIZ CAPITOLUL 5",null,null,null,null,null,null,{"$f":"H348+H351","v":0},{"$f":"I348+I351+I358","v":0}]
["Valoare TVA aferenta cheltuielilor eligibile si neeligibile"]
["TOTAL DEVIZ CAPITOLUL 5 (inclusiv TVA)",null,null,null,null,null,null,{"$f":"H359+I359+H360+I360","v":0}]

{"sheet":"Sectiunile D-F","index":2,"n_rows":282,"n_cols":9,"rows_kept":282,"cut":false,"hidden":false,"merged":[[36,7,37,7],[36,8,37,8],[36,6,37,6],[231,0,231,8],[178,7,179,8],[178,6,179,6],[151,3,151,7],[152,3,152,7],[169,0,169,7],[170,0,170,7],[171,0,171,7],[198,0,199,6],[198,8,199,8],[167,0,168,0],[225,0,225,6],[226,0,226,6],[227,0,227,6],[228,0,228,6],[229,0,229,6],[225,7,225,8],[226,7,226,8],[212,0,212,8],[223,7,223,8],[224,0,224,6],[224,7,224,8],[206,0,207,5],[208,0,209,5],[208,6,209,6],[222,7,222,8],[167,1,168,7],[167,8,168,8],[182,0,183,5],[182,6,183,6],[182,7,183,8],[113,6,114,7],[23,0,23,3],[28,0,28,3],[29,0,29,3],[31,0,31,3],[95,0,97,8],[112,0,112,4],[50,0,50,3],[30,0,30,3],[35,0,35,3],[40,0,40,8],[81,0,82,8],[100,0,101,8],[102,0,103,8],[104,0,105,8],[106,0,106,8],[107,0,108,8],[109,0,110,8],[112,6,112,7],[94,0,94,8],[51,5,51,8],[36,0,37,3],[52,0,74,8],[144,3,144,7],[122,6,122,7],[123,6,123,7],[134,3,134,7],[135,3,135,7],[116,0,116,8],[117,0,117,8],[83,0,83,8],[85,0,86,8],[87,0,87,8],[88,0,89,8],[90,0,91,8],[92,0,93,8],[98,0,99,8],[133,3,133,7],[118,0,118,7],[119,0,119,7],[130,3,130,7],[125,0,130,2],[126,3,126,7],[127,3,127,7],[128,3,128,7],[129,3,129,7],[113,0,114,4],[75,0,77,8],[78,0,79,8],[16,0,16,3],[17,0,17,3],[18,0,18,3],[19,0,19,3],[20,0,20,3],[21,0,21,3],[26,0,26,3],[51,0,51,4],[32,0,32,3],[33,0,33,3],[34,0,34,3],[41,0,41,8],[25,0,25,3],[44,1,44,7],[27,0,27,3],[43,0,43,4],[24,0,24,3],[46,0,46,8],[47,0,48,8],[22,0,22,3],[36,5,37,5],[36,4,37,4],[180,6,181,6],[176,0,176,8],[184,6,185,6],[184,7,185,8],[233,0,233,6],[202,0,203,5],[206,6,207,6],[186,0,186,8],[187,0,187,6],[190,0,191,6],[192,0,193,6],[188,0,189,6],[188,7,189,7],[188,8,189,8],[195,0,195,6],[195,7,195,8],[230,0,230,6],[180,7,181,8],[229,7,229,8],[208,7,209,8],[210,0,211,5],[210,6,211,6],[222,0,222,6],[223,0,223,6],[254,2,254,5],[256,0,256,3],[281,0,281,7],[262,0,262,1],[262,2,262,8],[265,1,265,3],[265,4,265,8],[266,0,266,8],[242,0,242,1],[242,3,242,8],[279,3,279,4],[267,0,274,8],[279,5,279,6],[279,0,279,2],[246,7,246,8],[248,7,248,8],[250,1,250,2],[250,4,250,5],[276,0,276,1],[276,2,276,6],[246,4,246,5],[264,4,264,5],[264,6,264,8],[261,2,261,8],[261,0,261,1],[237,0,237,8],[217,0,217,5],[218,0,219,8],[215,7,215,8],[216,7,216,8],[213,0,213,5],[213,7,213,8],[217,7,217,8],[214,0,214,5],[215,0,215,5],[216,0,216,5],[214,7,214,8],[234,0,234,6],[235,2,235,6],[230,7,230,8],[228,7,228,8],[260,1,260,8],[246,1,246,2],[252,0,252,5],[252,6,252,8],[250,7,250,8],[258,7,258,8],[256,5,256,6],[1,0,1,7],[15,0,15,3],[7,0,7,3],[7,4,7,6],[7,7,7,8],[8,0,8,3],[12,0,12,3],[13,0,13,3],[2,1,2,3],[3,1,3,3],[4,0,4,8],[5,0,5,6],[6,0,6,3],[11,0,11,3],[9,0,9,3],[10,0,10,3],[14,0,14,3],[9,4,11,4],[12,4,15,4],[9,5,11,5],[80,0,80,8],[187,7,187,8],[190,7,191,7],[190,8,191,8],[165,0,165,7],[175,0,175,8],[192,8,193,8],[192,7,193,7],[125,3,125,7],[120,4,121,5],[122,4,123,5],[120,0,124,2],[124,3,124,7],[120,3,123,3],[184,0,185,5],[180,0,181,5],[178,0,179,5],[157,0,161,8],[121,6,121,7],[144,0,156,2],[146,3,146,7],[148,3,148,7],[149,3,149,7],[143,0,143,7],[120,6,120,7],[244,4,244,5],[244,7,244,8],[196,0,197,6],[196,7,197,7],[196,8,197,8],[194,0,194,8],[239,0,239,1],[239,3,240,8],[236,0,236,8],[206,7,207,8],[201,7,201,8],[201,0,201,5],[202,7,203,8],[204,7,205,8],[202,6,203,6],[204,6,205,6],[204,0,205,5],[200,0,200,8],[198,7,199,7],[227,7,227,8],[243,0,243,2],[210,7,211,8],[221,0,221,8],[139,10,139,15],[138,10,138,15],[137,10,137,18],[131,0,142,2],[138,3,138,8],[163,0,164,8],[172,0,174,8],[136,3,136,7],[137,3,137,7],[139,3,139,7],[132,3,132,7],[131,3,131,8],[140,3,140,7],[141,3,141,7],[142,3,142,7],[166,1,166,7],[150,3,150,7],[153,3,153,7],[154,3,154,7],[155,3,155,7],[156,3,156,7],[147,3,147,7],[145,3,145,7],[162,0,162,8]]}
[]
["D. ALTE INFORMAȚII :"]
[null,"Programarea proiectului: "]
[null,"Numar luni de implementare",null,null,"\u001e"]
["E. LISTA DOCUMENTELOR ANEXATE PROIECTELOR AFERENTE  MĂSURII M5_5C,6A\npentru actiuni corespondente sub-măsurii 6.4, PNDR 2014-2020                                    \nOPIS documente"]
["A se axexa documentele cererii de finanțare în ordinea de mai jos:"]
["Lista documente",null,null,null,"Obligatoriu pentru toate proiectele","Obligatoriu, dacă proiectul impune","\nPAGINA de la-până la\n","Obligatoriu pentru toate proiectele","Obligatoriu, dacă proiectul impune"]
["ETAPA:",null,null,null,"        DEPUNERE",null,null,"CONTRACTARE"]
["DOC. 1.a) Studiul de Fezabilitate (atat pentru proiectele care prevad constructii-montaj cat si pentru proiectele fara constructii-montaj) (Anexa 2 din Ghidul solicitantului).\n\nDOC. 1.b) Expertiza tehnică de specialitate asupra construcţiei existente (in cazul proiectelor care prevăd modernizarea/ finalizarea construcţiilor existente/ achiziţii de utilaje cu montaj care schimbă regimul de exploatare a construcţiei existente)\n\nDOC 1.c) Raportul privind stadiul fizic al lucrărilor ( în cazul proiectelor care prevăd modernizarea/ finalizarea construcţiilor existente/ achiziţii de utilaje cu montaj care schimbă regimul de exploatare a  construcţiei existente). (numai în cazul construcțiilor nefinalizate)"]
["DOC. 2.1 Situaţiile financiare (bilanţ – formularul 10, contul de profit şi pierderi - formularul 20, formularele 30 și 40), precedente anului depunerii proiectului înregistrate la Administraţia Financiară,în care rezultatul operaţional (rezultatul de exploatare din contul de profit și pierdere - formularul 20 ) să fie pozitiv (inclusiv 0).\nÎn cazul în care solicitantul este înfiinţat cu cel puţin doi ani financiari înainte de anul depunerii cererii de finanţare se vor depune ultimele două situaţii financiare). Exceptie fac intreprinderile infiintate in anul depunerii cererii de finantare.\nsau"]
["Doc 2.2 Declaraţie privind veniturile realizate din Romania în anul precedent depunerii proiectului, înregistrată la Administraţia Financiară (formularul 200) insotita de Anexele la formular in care rezultatul brut (veniturile sa fie cel puţin egale cu cheltuielile) obtinut in anul precedent depunerii proiectului sa fie pozitiv (inclusiv 0). "]
["DOC. 2.3 Declaraţia privind veniturile din activităţi agricole impuse pe norme de venit (formularul 221), document obligatoriu de prezentat la depunerea cererii de finanţare;\nsau\n\nDOC. 2.4 Declaraţia de inactivitate înregistrată la Administraţia Financiară, în cazul solicitanţilor care nu au desfăşurat activitate anterior depunerii proiectului;"]
["DOC.3.Documente pentru terenurile și/sau clădirile aferente realizarii investiției:\nDOC.3.1 Pentru proiectele care presupun realizarea de lucrări de construcție sau achizitia de utilaje/echipamente cu montaj, se va prezenta înscrisul care să certifice, după caz:\na) Dreptul de proprietate privată\nb) Dreptul de concesiune\nc) Dreptul de superficie;\nActele doveditoare ale dreptului de proprietate privată, reprezentate de înscrisurile constatatoare ale unui act juridic civil, jurisdicțional sau administrativ cu efect constitutiv translativ sau declarativ de proprietate, precum:\n- Actele juridice translative de proprietate, precum contractele de vânzare cumpărare, donație, schimb, etc;\n- Actele juridice declarative de proprietate, precum împărțeala judiciară sau tranzacția;\n- Actele jurisdicționale declarative, precum hotărârile judecătorești cu putere de res-judicata, de partaj, de constatare a uzucapiunii imobiliare, etc.\n- Actele jurisdicționale, precum ordonanțele de adjudecare.\nContract de concesiune care acoperă o perioadă de cel puțin 10 ani începând cu anul depunerii cererii de finanţare, corespunzătoare asigurării sustenabilității investiției şi care oferă dreptul titularului de a executa lucrările de construcție prevăzute prin proiect, în copie.\nÎn cazul contractului de concesiune pentru cladiri, acesta va fi însoțit de o adresă emisă de concedent care să specifice dacă pentru clădirea concesionată există solicitări privind retrocedarea. În cazul contractului de concesiune pentru terenuri, acesta va fi însoțit de o adresă emisă de concedent care să specifice:\n- suprafaţa concesionată la zi - dacă pentru suprafaţa concesionată există solicitări privind retrocedarea sau diminuarea şi dacă da, să se menţioneze care este suprafaţa supusă acestui proces;\n- situaţia privind respectarea clauzelor contractuale, dacă este în graficul de realizare a investiţiilor prevăzute în contract, dacă concesionarul şi-a respectat graficul de plată a redevenţei şi alte clauze.\nContract de superficie care acoperă o perioadă de cel puțin 10 ani începând cu anul depunerii cererii de finanţare, corespunzătoare asigurării sustenabilității investiției şi care oferă dreptul titularului de a executa lucrările de construcție prevăzute prin proiect, în copie.\n\n"]
["Documentele de mai sus vor fi însoțite de:\nDocumente cadastrale şi documente privind înscrierea imobilelor în evidențele de cadastru și carte funciară (extras de carte funciară pentru informare din care să rezulte inscrierea imobilului în cartea funciară, precum și încheierea de carte funciară emisă de OCPI), în termen de valabilitate la data depunerii (emis cu maxim 30 de zile înaintea depunerii proiectului)."]
["DOC. 3.2 Pentru proiectele care propun doar dotare, achizitie de masini si/sau utilaje fara montaj sau al caror montaj nu necesita lucrari de constructii si/sau lucrari de interventii asupra instalatiilor existente (electricitate, apa, canalizare, gaze, ventilatie, etc.), se vor prezenta înscrisuri valabile pentru o perioadă de cel putin 10 ani începând cu anul depunerii cererii de finanţare care să certifice, după caz:\na) dreptul de proprietate privată,\nb) dreptul de concesiune,\nc) dreptul de superficie,\nd) dreptul de uzufruct;\ne) dreptul de folosinţă cu titlu gratuit;\nf) împrumutul de folosință (comodat)\ng) dreptul de închiriere/locațiune\nDe ex.: contract de cesiune, contract de concesiune, contract de locațiune / închiriere, contract de comodat.\n“Înscrisurile menționate la punctul 3.2 se vor depune respectand una dintre cele 2 conditii (situatii) de mai jos:\nA. vor fi însoțite de:\n-Documente cadastrale şi documente privind înscrierea imobilelor în evidențele de cadastru și carte funciară (extras de carte funciară pentru informare din care să rezulte înscrierea dreptului în cartea funciară, precum și încheierea de carte funciară emisă de OCPI), în termen de valabilitate la data depunerii (emis cu maxim 30 de zile înaintea depunerii proiectului)\nSAU\nB. vor fi încheiate în formă autentică de către un notar public sau emise de o autoritate publică sau dobândite printr-o hotărâre judecătorească.\n"]
["În situaţia în care imobilul pe care se execută investiţia nu este liber de sarcini (ipotecat pentru un credit) se va depune acordul creditorului privind execuţia investiţiei şi graficul de rambursare a creditului."]
["DOC. 4. Extras din Registrul agricol – în copie cu ştampila primăriei şi menţiunea \"Conform cu originalul\" pentru dovedirea calităţii de membru al gospodăriei agricole."]
["DOC. 5. Copia actului de identitate pentru reprezentantul legal de proiect (asociat unic/asociat majoritar/administrator/PFA, titular II, membru IF)."]
["DOC. 6. Documente care atestă forma de organizare a solicitantului.\nDOC. 6.1 Hotărâre judecătorească definitivă pronunţată pe baza actului de constituire și a statutului propriu în cazul Societăţilor agricole, însoțită de Statutul Societății agricole;\nDOC. 6.2 Act constitutiv pentru Societatea cooperativă agricolă."]
["DOC. 7.1 Certificat de cazier judiciar al solicitantului-persoană juridică\nDOC. 7.2 Certificat de cazier judiciar al reprezentantului legal-persoană fizică"]
["DOC. 8.1 Certificat de atestare fiscală pentru întreprindere\nDOC. 8.2 Certificat de atestare fiscală pentru reprezentantul legal;\nCertificatele vor fi emise de către Direcţia Generală a Finanţelor Publice şi de primăriile de pe raza cărora îşi au sediul social şi punctele de lucru (numai în cazul în care solicitantul este proprietar asupra imobilelor) şi,dacă este cazul, graficul de reeşalonare a datoriilor către bugetul consolidat."]
["DOC. 9. Document emis de AJPM, în conformitate cu Protocolul AFIRANPM- GNM."]
["DOC. 10. Declaraţie privind încadrarea întreprinderii în categoria întreprinderilor mici şi mijlocii (Anexa 6.1din Ghidul solicitantului)"]
["DOC. 11. Declaraţie pe propria răspundere a solicitantului privind respectarea regulii de cumul a ajutoarelor de minimis (Anexa 6.2 din Ghidul solicitantului)"]
["DOC. 12. Documente care dovedesc capacitatea şi sursa de co-finanţare a investiţiei emise de o instituţie financiară în original (extras de cont şi/ sau contract de credit) în termen de maxim 90 de zile de la primirea notificării privind selectarea cererii de finanţare;"]
["DOC. 13. Adresă emisă de instituţia financiară (bancă/ trezorerie) cu datele de identificare ale băncii şi ale contului aferent proiectului FEADR (denumirea, adresa băncii, codul IBAN al contului în care se derulează operaţiunile cu AFIR). Nu este obligatorie deschiderea unui cont separat pentru derularea proiectului."]
["DOC. 14. Certificat de urbanism pentru investitia propusă prin proiect / Autorizaţie de construire pentru proiecte care prevăd construcţii, însoţit, dacă este cazul, de actul de transfer a dreptului şi obligaţiilor ce decurg din Certificatul de urbanism şi o copie a adresei de înştiinţare."]
["DOC. 15. Aviz specific privind amplasamentul şi funcţionarea obiectivului eliberat de ANT pentru construcţia/modernizarea sau extinderea structurilor de primire turistice cu funcțiuni de cazare sau restaurante clasificate conform Ordinului 65/2013 si in conformitate cu Ordonanţa de Urgenţă nr. 142 din 28 octombrie 2008, cu modificările şi completările ulterioare."]
["DOC. 16. Certificat de clasificare eliberat de ANT pentru structura de primire turistică cu funcțiuni de cazare sau restaurante clasificate conform Ordinului 65/2013 si in conformitate cu Ordonanţa de Urgenţă nr. 142 din 28 octombrie 2008 (în cazul  modernizării/ extinderii), cu modificările şi completările ulterioare."]
["DOC. 17. Declaraţie pe propria răspundere a solicitantului cu privire la neîncadrarea în categoria \"firma în dificultate\", semnată de persoana autorizată să reprezinte intreprinderea, conform legii \".\nDeclaraţia va fi dată de toţi solicitanţii cu excepţia PFA-urilor, intreprinderilor individuale, intreprinderilor familiale şi a societăţilor cu mai puţin de 2 ani fiscali."]
["DOC. 18. Declaraţie pe propria răspundere a solicitantului ca nu a beneficiat de servicii de consiliere prin M-02 (Anexa 6.4 din Ghidul solicitantului);"]
["DOC. 19. Declaratie expert contabil din care sa reiasa că solicitantul in anul precedent depunerii cererii de finanare a obtinut venituri din exploatare iar veniturile din activitățile agricole reprezintă cel puțin 50% din total venituri din exploatare ale solicitantului."]
["DOC. 20. Document emis de DSP județeană conform tipurilor de documente mentionate în protocolul de colaborare dintre AFIR și Ministerul Sănătății;"]
["DOC. 21. Document emis de DSVSA, conform Protocolului de colaborare dintre AFIR şi ANSVSA publicat pe pagina de internet www.afir.info"]
["DOC. 22. Certificat de cazier fiscal al solicitantului;"]
["DOC 23. Alte documente justificative (Se vor specifica dupa caz);"]
["1. Declarația pe propria răspundere a solicitantului de raportare către GAL (Anexa 9 din Ghidul solicitantului);\n2. Declarația pe propria răspundere a solicitantului (Anexa 10 din Ghidul solicitantului);\n3. Declaratia prelucrarea datelor cu caracter personal (Anexa 12 din Ghidul solicitantului)\n4. Certificat constatator emis de ONRC, valabil la data depunerii proiectului -  în copie."]
[]
[]
[]
["F. DECLARAŢIE PE PROPRIA RĂSPUNDERE A SOLICITANTULUI"]
["(nebifarea unei căsuțe din partea F a cererii de finanțare, dacă proiectul impune, constituie eroare de fond, situație în care proiectul este declarat neeligibil)"]
[]
["Prin această declaraţie solicitantul"]
[]
[]
["care solicită asistență financiară nerambursabilă prin programul FEADR pentru proiectul intitulat"]
[{"$f":"'Sectiunile A-C'!A38","v":0}]
[]
[]
["prin reprezentant legal"]
[{"$f":"'Sectiunile A-C'!A134","v":0},null,null,null,null,{"$f":"'Sectiunile A-C'!C134","v":0}]
["cunoscând prevederile legii penale cu privire la falsul în declarații:\n1. Declar că proiectul propus asistenței financiare nerambursabile FEADR nu beneficiază de altă finanțare din programe de finanțare nerambursabilă.\nDe asemenea mă angajez ca în cazul în care proiectul va fi selectat pentru finanțare FEADR, nu voi depune acest proiect la nici un alt program de finanțare nerambursabilă la care proiectul poate fi în întregime sau parțial eligibil pentru asistență.\n2. Declar pe propria răspundere că îndeplinesc condiţiile minime de acordare a sprijinului prevăzute în fişa măsurii şi ghidul solicitantului şi mă angajez să le respect pe perioada de valabilitate a contractului de finanţare şi monitorizare a proiectului, inclusiv criteriile de selecţie pentru care am fost punctat.\n3. Declar pe propria răspundere că toate informaţiile din prezenta cerere de finanţare şi din documentele anexate sunt corecte şi mă angajez să respect condiţiile cerute în reglementările referitoare la prezentul program şi pe cele legate de Studiul de fezabilitate şi să furnizez periodic, la cerere, documente justificative necesare.\n4. Declar pe propria răspundere că orice modificări aduse dreptului de proprietate sau de folosinţă vor fi notificate AFIR în termen de trei zile de la data incheierii lor. De asemenea, mă angajez, ca pe perioada de valabilitate a contractului de finanţare şi monitorizare a proiectului să nu diminuez suprafaţa şi/sau infrastructura cuprinsă în proiect.\n5.   Declar pe propria răspundere că eu şi organizaţia mea (asociaţie sau întreprindere) nu suntem într-unul din următoarele cazuri:\n  Acuzat din cauza unei greșeli privind conduita profesională având ca soluție finală res judicata (împotriva căreia nici un apel nu este posibil).\n  Vinovat de grave deficiențe de conduită profesională dovedite prin orice mijloace pe care Agenția le poate justifica.                                Vinovat de faptul că nu am prezentat informaţiile cerute de autoritatea contractantă ca o condiţie de participare la licitaţie sau contractare.\n  Încălcarea prevederilor contractuale prin care nu mi-am îndeplinit obligațiile contractuale în legătură cu un alt contract cu Agenția sau alte contracte finanțate din fonduri comunitare.\n  Încercarea de a obține informații confidențiale sau de influențare a Agenției în timpul procesului de evaluare a proiectului și nu voi face presiuni la adresa evaluatorului. "]
[]
[]
[]
[]
[]
[]
[]
[]
[]
[]
[]
[]
[]
[]
[]
[]
[]
[]
[]
[]
[]
[]
["6.                Declar că organizaţia pe care o reprezint ARE datorii către instituţii de credit şi/sau institutii financiare bancare/nebancare pentru care prezint graficul de rambursare"]
[]
[]
["7                    Declar că organizația pe care o reprezint NU are datorii către instituții de credit şi/sau instituții financiare bancare/nebancare."]
[]
["8.  Declar pe propria răspundere că:"]
["               Nu sunt înregistrat în scopuri TVA și că mă angajez să notific Agenției orice modificare a situatiei privind înregistrarea ca plătitor de TVA, în maximum 10 (zece) zile de la data înregistrării în scopuri TVA."]
[]
["               Sunt înregistrat în scopuri de TVA (certificat de înregistrare fiscală în scopuri de TVA)."]
[]
["9.1   Declar pe propria raspundere ca nu am înscrieri privind sancţiuni economico-financiare in certificatul de cazier judiciar –persoană juridica, pe care ma oblig să-l depun la încheierea contractului de finanţare\n9.2   Declar pe propria răspundere că reprezentantul legal nu are înscrieri privind sancţiuni economico-financiare în certificatul de cazier judiciar –persoană fizică, pe care mă oblig să-l depun la încheierea contractului de finanțare."]
[]
["10.  Declar pe propria răspundere că nu am fapte înscrise în cazierul fiscal pe care mă oblig să îl depun la încheierea contractului de finanţare."]
["11.  Declar pe propria răspundere că voi deschide punct de lucru în spaţiul rural, cu codul CAEN al activităţii pentru care solicită finanţare, când voi îndeplini condiţiile, conform legislaţiei în vigoare (pentru investiţii noi, dacă este cazul)."]
[]
["12. Mă angajez că la momentul finalizării agro-pensiunii, aceasta va fi introdusă în circuitul turistic (în cazul\nproiectelor care prevăd agropensiuni)."]
[]
["13. Declar pe proprie răspundere că investiţia finanţată va deservi exclusiv interesele economice ale acestuia (beneficiarului proiectului) în scopul obţinerii de profit propriu."]
[]
["14. Declar pe propria răspundere că nivelul de confort şi calitatea serviciilor propuse prin proiect vor atinge\nstandardul de calitate de minimum o margaretă (în cazul proiectelor care prevăd agropensiuni)."]
["15. Declar pe propria raspundere că modernizarea structurii de primire turistica va presupune in mod\nobligatoriu cresterea nivelului de confort cu cel putin o margareta (în cazul proiectelor care prevăd\nagropensiuni)"]
[]
[]
["16. Declar pe propria răspundere că toate cheltuielile neeligibile vor fi suportate de solicitant şi că acestea vor fi realizate până la finalizarea proiectului."]
[]
["17. Declar pe propria răspundere că dosarul cererii de finanţare în original, va fi identic cu dosarul cererii de finanţare depus on-line. În caz contrar, proiectul nu va fi contractat."]
[]
["18. Ma angajez ca in termenul prevazut in “Notificarea beneficiarului privind selectarea cererii de finanatare si semnarea contractului de finantare” sa prezint documentul privind cofinantarea proiectului si Angajamentul responsabilului legal al proiectului ca nu va utiliza in alte scopuri 50% din cofinantarea privata, in cazul rezentarii cofinantarii prin extras de cont."]
[]
["19. Declar pe propria răspundere că în cazul în care nu respect oricare din punctele prevăzute în această\ndeclaraţie, proiectul să devină neeligibil în baza criteriului \"Eligibilitatea solicitantului\" sau contractul să fie\nreziliat."]
[]
["20. Declar pe propria răspundere ca nu sunt în insolventă sau incapacitate de plată."]
["21. Accept publicarea pe site-ul AFIR a datelor mele, cu respectarea legislaţiei naţionale şi europene privind\ntransparenţa."]
[]
["22. Sunt de acord ca AFIR să consulte și să prelucreze, prin operațiunile prevăzute de legislația în vigoare în vederea desfășurării activității specifice, datele mele cu caracter personal, furnizate AFIR.\n23. Declar pe propria răspundere ca investiția va respecta legislaţia în vigoare din domeniul: sănătății publice, sanitar-veterinar și de siguranță alimentară.\n24. Declar pe propria răspundere ca voi prezenta toate avizele și autorizarile necesare investiției, până la ultima tranșă de plată."]
[]
[]
["Semnătura reprezentant legal şi ştampila",null,null,null,null,null,"Data"]
[]
[]
[]
["Anexa INDICATORI DE MONITORIZARE  \n"]
["Masura M5_5C,6A - INVESTIȚII ÎN CREAREA ȘI DEZVOLTAREA DE MICRO-INTREPRINDERI NON-AGRICOLE ÎN TERITORIUL ”GAL CETATEA BUCOVINEI”, inclusiv cei specifici teritoriului (dacă este cazul), prevăzuţi în fișa tehnică a măsurii din SDL "]
["1. Cod RO"]
["2. Cod CAEN"]
["3. Tipul beneficiarului",null,null,"Solicitanți înființați în baza OUG 44/2008, OG 124/1998; Legea nr. 160/1998;","Barbati",null,"<=40"]
[null,null,null,null,null,null,">40"]
[null,null,null,null,"Femei",null,"<=40"]
[null,null,null,null,null,null,">40"]
[null,null,null,"Persoana juridică"]
["4. Statutul beneficiarului",null,null,"Fermier"]
[null,null,null,"Membru al unei gospodarii agricole"]
[null,null,null,"Microintreprindere nou înființată"]
[null,null,null,"Intreprindere mică nou înființată"]
[null,null,null,"Microîntreprindere existentă"]
[null,null,null,"Întreprindere mică existentă"]
["5. Tipul investitiei (actiuni eligibile)",null,null,"Investiții pentru producerea și comercializarea produselor non-agricole, cum ar fi: "]
[null,null,null,"• fabricarea produselor textile, îmbrăcăminte, articole de marochinărie, articole de hârtie și carton, fabricarea produselor chimice, farmaceutice, fabricare produse electrice, electronice; "]
[null,null,null,"• activități de prelucrare a produselor lemnoase;"]
[null,null,null,"• industrie metalurgică, fabricare construcții metalice, mașini, utilaje și echipamente; "]
[null,null,null,"• producerea de produse electrice, electronice, și metalice, mașini, utilaje și echipamente, producția de carton etc;  "]
[null,null,null,"• Investiții pentru producția de combustibil din biomasă (ex.: fabricare de peleți și brichete) în vederea comercializării;"]
[null,null,null,"• alte activități non-agricole. "]
[null,null,null,"Investiții legate de furnizarea de servicii, cum ar fi: "]
[null,null,null,"• Servicii medicale, sociale, sanitar-veterinare, servicii de reparații mașini, unelte, obiecte casnice, servicii de consultanță, contabilitate, juridice, audit; "]
[null,null,null,"• Activități de servicii în tehnologia informației și servicii informatice; "]
[null,null,null,"• Servicii tehnice, administrative, servicii turistice etc;"]
[null,null,null,"• alte servicii non-agricole. "]
["6. Suprafaţa (ha) exploataţiei/exploataţiilor sprijinite (se completează numai pentru solicitanţii care deţin exploataţii agricole şi se încadrează în categoria fermierilor sau a membrilor gospodăriilor agricole)"]
["7. Tip ramură agricolă",null,null,"Culturi de câmp"]
[null,null,null,"Horticultură"]
[null,null,null,"Culturi permanente"]
[null,null,null,"Creștere bovine pentru carne"]
[null,null,null,"Creștere bovine pentru lapte"]
[null,null,null,"Creștere ovine și caprine "]
[null,null,null,"Porcine"]
[null,null,null,"Păsări de curte"]
[null,null,null,"Mixte - culturi mixte"]
[null,null,null,"Mixte - animale mixte"]
[null,null,null,"Mixte - culturi şi animale cu excepţia albinelor"]
[null,null,null,"Albine"]
[null,null,null,"Altele"]
["Indic. nr.1 - reprezintă codul de inregistrare al beneficiarului în Registrul Fermierului la APIA ;\nIndic. nr.2 - reprezintă codul CAEN completat de solicitant la prima pozitie din cele maxim 5 coduri CAEN din Cererea de\nFinantare pentru investiţia/investitiile vizată/vizate prin proiect ;\nIndic. nr. 3, 4, 5 - se va bifa doar o singura categorie/ categoria majoritară ;\nIndic. nr. 6 şi 7 - aceşti indicatori (suprafaţa exploataţiei agricole şi tip ramură agricolă) se vor completa numai pentru\nsolicitanţii care deţin exploataţii agricole şi se încadrează în categoria fermierilor sau a membrilor gospodăriilor agricole. În\ncazul în care solicitantul nu deţine o suprafaţă, exploataţia vizează doar creşterea animalelor, la indicatorul “Suprafaţa\nexploataţiei agricole sprijinite” va completa “0”, iar la “Tip ramură agricolă” va bifa ramura agricolă la care se încadrează."]
[]
[]
[]
[]
["Anexa INDICATORI LOCALI DE MONITORIZARE"]
["Masura M5_5C,6A - INVESTIȚII ÎN CREAREA ȘI DEZVOLTAREA DE MICRO-INTREPRINDERI NON-AGRICOLE ÎN TERITORIUL ”GAL CETATEA BUCOVINEI”"]
[]
["1.   Locuri de muncă create - indicator specific Leader "]
[1.1000000000000001,"Existente"]
[1.2,"Nou create"]
[]
["2.   Numarul de beneficiari sprijiniti - indicator local"]
["3.   Cheltuielile publice totale (DI 1A) "]
["4.   Numarul de proiecte ce au componente inovative sau de protectia mediului "]
["Indic. nr. 1 - se va completa numărul locurilor de muncă existente şi numărul locurilor de muncă nou create prin proiect \nIndic. nr. 2 - se va completa numărul de beneficiari sprijiniti\nIndic. nr. 3 - se va completa suma cheltuielilor publice totale \nIndic. nr. 4 - se va completa număr daca proiectul are componenta inovativa sau de protectia mediului"]
[]
[]
[]
["FACTORI DE RISC"]
[]
["   I1. Valoarea sprijinului public nerambursabil (EURO)",null,null,null,null,null,null,"Punctaj obţinut"]
[]
["• proiecte cu valoarea sprijinului nerambursabil între 100.001 → 200.000 euro",null,null,null,null,null,null,3]
[]
["• proiecte cu valoarea sprijinului nerambursabil între 50.001 → 100.000 euro",null,null,null,null,null,null,2]
[]
["• proiecte cu valoarea sprijinului nerambursabil între 5.000 → 50.000 euro",null,null,null,null,null,null,1]
[]
[]
["   I2. Complexitatea investitiei",null,null,null,null,null,null,"Punctaj obţinut"]
["• Modernizări cu construcţie şi/sau montaj",null,null,null,null,null,null,null,5]
[]
["• Modernizări prin achiziţie utilaje\n",null,null,null,null,null,null,null,4]
[]
["• Investiție nouă",null,null,null,null,null,null,null,3]
[]
[]
[" I3. Intensitatea sprijinului (procent contribuţie publică",null,null,null,null,null,null,"Punctaj obţinut"]
["90% - 85%",null,null,null,null,null,null,null,5]
[]
["75% - 70%",null,null,null,null,null,null,null,4]
[]
[]
["I4. Riscul proiectului d.p.d.v. al raportului procentual între Cheltuielile suportate de solicitant si Valoarea ajutorului nerambursabil \n       Total valoare proiect (fără TVA)\n% = --------------------------------------------------------- x 100\n       Valoarea ajutorului nerambursabil solicitat",null,null,null,null,null,null,"Punctaj obţinut"]
["• > 200%",null,null,null,null,null,null,5]
[]
["• între 176 si 200%",null,null,null,null,null,null,4]
[]
["•  între 151 si 175%",null,null,null,null,null,null,3]
[]
["•  între 121 si 150%",null,null,null,null,null,null,2]
[]
["• < 120%",null,null,null,null,null,null,1]
[]
[]
["I5. Capacitatea societăţii de a manageria proiectul, experienţa în derularea afacerilor \n",null,null,null,null,null,null,"Punctaj obtinut"]
["• Firmă nouă sau fără activitate",null,null,null,null,null,null,5]
["• Firmă cu experienţă dar care nu a participat la alt proiect comunitar sau nu a obţinut asistenţă financiară nerambursabilă din partea altui instrument financiar",null,null,null,null,null,null,4]
["• Firmă cu experienţă care a finalizat un proiect comunitar sau a obţinut din asistenţă financiară nerambursabilă din partea altui instrument financiar",null,null,null,null,null,null,3]
["TOTAL",null,null,null,null,null,"(I1+I2+I3+I4+I5)/5"]
["Pentru selectarea cererilor de finanţare ce vor fi verificate se va determina riscul fiecărui proiect folosind un număr de 5 factori\nde risc (I1, I2, I3, I4, I5).\nPentru fiecare proiect se va determina punctajul fiecărui factor de risc pe o scară de la 1 la 5."]
[]
[]
["Grila criterii de selectie"]
["Criterii de slectie ",null,null,null,null,null,null,"Punctaj obtinut"]
["1.Vor fi selectate cu prioritate proiectele care utilizează energia produsă din surse regenerabile"]
["2. Sunt prioritizate la selectie proiectele solicitantilor care au beneficiat de finantare prin masura M6/6B si proiectele solicitantilor care au beneficiat de finantare prin masura M2/2A,3A,6A si care beneficiaza de banda larga prin masura M7/6C."]
["3. Asociat unic sa aiba varsta pana in 40 ani"]
["4. Investitia propusa conduce la cresterea cifrei de afaceri"]
["5. Proiectele propun solutii inovative"]
["6. Intreprinderile din domeniul non-agricol care deservesc populatia din mai mult de doua UAT din GAL"]
["7. Suma nerambursabilă acordată va respecta condiţia crearii de noi locuri de muncă astfel:\n- pentru maxim 35.000 Euro = 1 loc de muncă;\n- pentru 35.001 - 75.000 Euro se vor crea minim 2 locuri de muncă;"]
["TOTAL",null,null,null,null,null,null,"00,00 Puncte"]
["Punctaj minim 25 puncte"]
[]
["                                     Codul unic de înregistrare APIA"]
["În cazul în care nu aveți un cod unic de înregistrare APIA, completați acest formular"]
[null,null,"FORMULAR"]
["de înscriere în Registrul unic de identificare pentru solicitanţii de finanţare prin măsurile"]
["Programului naţional de dezvoltare rurală 2014 - 2020"]
[]
["Denumire solicitant:"]
[]
[]
["Categorie Solicitant:"]
["Sediul / Adresa"]
["Ţara ",null,null,"Judeţul",null,null,"ORASUL"]
[]
["comuna",null,null,"satul",null,null,"strada"]
[]
["numar",null,"bloc",null,"etaj",null,"cod postal"]
[]
["nr. Telefon",null,null,"fax",null,null,"email"]
[]
["Număr de înregistrare în registrul comerțului/Registrul asociațiilor și fundațiilor"]
[]
["CUI / CIF"]
[]
["Cod CAEN pentru activitatea principală"]
[]
["Cod CAEN pentru activitatea secundară pentru care se solicită înregistrarea în Registrul unic de identificare"]
[]
["Cod IBAN"]
["deschis la Banca"]
["Sucursala / Agenție"]
[]
["Prin reprezentant legal, doamna/domnul"]
["cu CNP",null,null,null,",   solicit înscrierea în Registrul unic de îdentificare - Agenţia de Plăţi şi Intervenţie pentru Agricultură."]
[]
["Am luat la cunoştinţă că orice modificare a informaţiilor de mai sus trebuie furnizată către APIA în termen de maximum 10 zile lucrătoare de la producerea acestora.\nDeclar pe propria răspundere că cele de mai sus sunt conforme cu realitatea.\nSunt de acord ca datele din cerere să fie introduse în baza de date a Sistemului Integrat de Administrare şi Control, procesate şi verificate în vederea înscrierii în Registrul unic de identificare şi transmise autorităţilor responsabile în vederea elaborării de studii statistice şi de evaluări economice, în condiţiile Legii nr. 677-2001 pentru protecţia persoanelor cu privire la prelucrarea datelor cu caracter personal şi libera circulaţie a acestor date, cu modificarile şi completările ulterioare.\n"]
[]
[]
[]
[]
[]
[]
[]
[]
["Reprezentant legal",null,null,null,null,null,null,"Data"]
[]
[]
["Numele şi prenumele"]
[]
["Semnătura ................................................................................................................................."]